{"text_format":"1","workbook":"xlsx","n_sheets":11,"sheets":["Inicio","FICHA DE HISTORIAS ","Instrucciones de la ficha","Lista_Act_EC","CONCEPTO11R`S","GRAFICA-CALCUL","REPORTE","DEPART_PROV","PROVI_DISTR","CONFIANZ","LISTA_ACT_ECON"],"not_rendered":{"charts":0,"images":4,"macros":0,"external_links":0,"defined_names":226,"comments":0,"pivot_tables":0},"unopened":[],"bounds":{"document_bytes":16777216,"sheet_cells":100000,"rows_first":2000,"rows_last":500,"rows_between":2000,"halvings":0,"cell_chars":16384,"cell_head_chars":4096},"cells_cut":0,"cells_raw":0,"read":"whole","date_system":"1900"}

{"sheet":"Inicio","index":0,"n_rows":3,"n_cols":1,"rows_kept":3,"cut":false,"hidden":false,"merged":[[1,0,1,8],[2,0,2,8]]}
[]
["¡Hola! \nGracias por sumarte a generar un repositorio de iniciativas que aplican estrategias o medidas de economía circular. Juntas y juntos aceleraremos la transición hacia una economía circular (EC) de nuestro país. \nAntes de iniciar el llenado, por favor, lee estas breves indicaciones:"]
["*El responsable de llenar la ficha deberá ingresar la información en las celdas resaltadas en gris. Asimismo, visualizará celdas que contienen listas despleglables que, al seleccionar un elemento, se llenará automáticamente. \n*Se deberá hacer clic en la celda para poder visualizar si es desplegable o no. \n*El formato de este documento es FIJO y no debe modificarse.\n*En caso que, su empresa implemente más de una iniciativa de EC, se le pide completar una nueva ficha. El llenado de la calculadora corresponde a su empresa en global, en ese sentido, el resultado de ese formato aplica para sus diferentes iniciativas. \n*Si tienes dudas respecto al llenado del formato puedes encontrar instrucciones detalladas en la hoja \"instrucciones de la ficha\". Si aún continúas con dudas, por favor, comunícate con Shirley Tito al correo shti@niras.de"]

{"sheet":"FICHA DE HISTORIAS ","index":1,"n_rows":102,"n_cols":11,"rows_kept":102,"cut":false,"hidden":false,"merged":[[55,3,55,4],[55,7,55,8],[77,1,77,2],[80,1,80,2],[83,1,83,2],[32,3,32,10],[52,1,56,2],[56,5,56,10],[82,1,82,2],[82,5,82,8],[82,9,82,10],[36,1,36,10],[68,1,72,2],[68,3,68,10],[69,3,69,10],[70,3,70,10],[71,3,71,10],[72,3,72,10],[38,3,38,6],[38,7,38,10],[41,3,41,4],[47,7,47,8],[62,3,62,10],[48,3,48,4],[49,3,49,4],[48,5,48,10],[63,3,63,10],[64,3,64,10],[73,1,73,10],[54,3,54,4],[54,7,54,8],[40,3,40,4],[42,3,42,4],[85,1,85,2],[74,1,74,2],[85,4,85,10],[77,9,78,10],[79,9,80,10],[74,5,74,10],[83,4,83,10],[84,4,84,10],[75,5,76,8],[77,5,78,8],[79,1,79,2],[76,1,76,2],[78,1,78,2],[79,5,80,8],[84,1,84,2],[75,9,76,10],[75,1,75,2],[39,3,39,4],[39,7,39,8],[40,7,40,8],[42,7,42,8],[41,7,41,8],[50,3,50,4],[50,5,50,10],[47,3,47,4],[43,7,43,8],[44,7,44,8],[43,3,43,4],[44,3,44,4],[49,5,49,10],[91,1,91,10],[92,1,92,10],[86,1,86,10],[87,1,87,10],[89,1,89,10],[88,1,88,10],[90,1,90,10],[45,7,45,8],[46,7,46,8],[45,3,45,4],[53,3,53,4],[52,7,52,8],[53,7,53,8],[46,3,46,4],[57,1,57,10],[58,1,62,2],[59,3,59,10],[60,3,60,10],[66,3,66,10],[65,3,65,10],[67,3,67,10],[63,1,67,2],[58,3,58,10],[61,3,61,10],[35,1,35,10],[7,3,7,10],[13,3,13,10],[21,3,21,10],[20,1,20,10],[18,1,18,10],[8,3,8,10],[5,1,5,2],[5,3,5,10],[24,3,24,10],[31,3,31,10],[33,3,33,10],[6,1,6,2],[7,1,7,2],[8,1,8,2],[9,1,9,2],[10,1,10,2],[9,3,9,10],[6,3,6,10],[11,3,11,10],[12,3,12,10],[26,1,26,2],[17,3,17,10],[13,1,13,2],[22,1,22,2],[1,1,1,10],[4,1,4,10],[19,1,19,10],[14,1,17,1],[14,3,14,10],[15,3,15,10],[16,3,16,10],[23,1,23,2],[23,3,23,10],[94,5,95,5],[2,1,2,10],[81,1,81,2],[81,9,81,10],[81,5,81,8],[38,1,51,2],[51,3,51,4],[51,5,51,10],[32,1,33,1],[56,3,56,4],[34,1,34,10],[27,3,27,10],[52,3,52,4],[37,1,37,10],[11,1,11,2],[12,1,12,2],[10,3,10,10],[22,3,22,10],[25,1,25,2],[25,3,25,10],[31,1,31,2],[21,1,21,2],[27,1,30,1],[24,1,24,2]]}
[]
[null,"FICHA DE HISTORIAS QUE APLICAN ESTRATEGIAS DE ECONOMÍA CIRCULAR (EC)"]
[null,"Completar la información, según la iniciativa de EC que su empresa ha implementado. Los datos a completar deben estar relacionados a la línea de producción, proceso productivo y/o al producto terminado, es decir, dónde se aplicó la iniciativa específicamente. Por ejemplo: si la iniciativa se encuentra relacionada a \"recirculación de efluentes\", completar, principalmente, la información de las variables: \"consumo de agua\", \"% agua residual recirculada\" y \"costo anual de agua\", en caso que, la iniciativa repercuta además en otra variable (consumo anual de electricidad, consumo anual de combustible, etc.) deberá consignar dicha información. "]
[]
[null,"DATOS GENERALES"]
[null,null,null,"Elegir las opciones de las listas desplegables"]
[null,"Nº RUC/ RUS:"]
[null,"Razón social/Nombre comercial:"]
[null,"Representante legal/gerente general:"]
[null,"Género del/la representante legal/gerente general:",null,"Femenino"]
[null,"Sector económico al que pertenece su actividad económica:",null,"Por ejemplo: industria manufacturera, agroindustria, minería, pesca, hidrocarburos, construcción, comercio, otros."]
[null,"De ser una actividad de la industria manufacturera, grupo al que pertenece:",null,"Fabricación de muebles, reparación e instalación de maquinaria y/o equipos y otras industrias manufactureras"]
[null,"Especifique su actividad económica:",null,"Por ejemplo: Elaboración de vinos"]
[null,"Tamaño empresarial:",null,"Ventas anules entre 8,415,000 - 11,385,000 (Mediana empresa)"]
[null,"Datos de la persona que completa la ficha:","Nombres y Apellidos:"]
[null,null,"Cargo:"]
[null,null,"Correo electrónico:"]
[null,null,"Teléfono:"]
[]
[null,"DATOS DE LA INICIATIVA"]
[]
[null,"Nombre del iniciativa:"]
[null,"Descripción de la iniciativa:"]
[null,"Temáticas de circularidad, relacionadas a las estrategias de EC:",null,"Segregar"]
[null,"Estado:",null,"En construcción"]
[null,"Fecha de inicio de la iniciativa:"]
[null,"Tiempo de implementación:"]
[null,"Lugar donde se implementa la iniciativa:","Departamento:"]
[null,null,"Provincia:"]
[null,null,"Distrito:"]
[null,null,"Dirección:"]
[null,"Inversión:"]
[null,"Fuente financiera:","Propio"]
[null,null,"Ajeno ","Ejemplo: Otras fuentes de financiamiento (PROINNOVATE, PROCIENCIA-CONCYTEC, ETC.)"]
[]
[null,"IMPACTOS/BENEFICIOS"]
[null,"Completar la información de las variables, según la iniciativa de EC que su empresa ha implementado. Por ejemplo: si la iniciativa se encuentra relacionada a \"recirculación de efluentes\", completar, principalmente, la información de las variables: \"consumo de agua\", \"% agua residual recirculada\" y \"costo anual de agua\", en caso que, la iniciativa repercuta además en otra variable (consumo anual de electricidad, consumo anual de combustible, etc.) deberá consignar dicha información."]
[null,"Cuantificacion de beneficios "]
[null,"AMBIENTALES",null,"Antes de la Iniciativa",null,null,null,"Despues de la Iniciativa"]
[null,null,null,"Variable ",null,"Unidad","Valor  ","Variable ",null,"Unidad","Valor  "]
[null,null,null,"Consumo anual de agua",null,"m3",100,"Consumo anual de agua",null,{"$f":"F41","v":"m3"},90]
[null,null,null,"Consumo anual de electricidad",null,"kWh",1000,"Consumo anual de electricidad",null,"kWh",750]
[null,null,null,"Consumo anual de combustible (petróleo)",null,"galones",1000,"Consumo anual de combustible (petróleo)",null,"galones",900]
[null,null,null,"Consumo anual de combustible (diésel)",null,"galones",5,"Consumo anual de combustible (diésel)",null,"galones",4]
[null,null,null,"Consumo anual de combustible (gasolina)",null,"galones",8,"Consumo anual de combustible (gasolina)",null,"galones",3]
[null,null,null,"Consumo anual de combustible (gas natural)",null,"m3",200,"Consumo anual de combustible (gas natural)",null,"m3",150]
[null,null,null,"Consumo anual de combustible (GLP)",null,"kg",20,"Consumo anual de combustible (GLP)",null,"kg",10]
[null,null,null,"Generacion de residuos ",null,"T",5,"Generacion de residuos ",null,"T",2.5]
[null,null,null,"% de agua residual recirculada"]
[null,null,null,"% mermas, subproductos u otros de similar naturaleza aprovechado."]
[null,null,null,"% de energía renovable "]
[null,null,null,"Otros (Ej. % materia prima reducida, % material reciclado utilizado, etc.)"]
[null," ECONÓMICOS",null,"Costo anual de agua",null,"Soles",300,"Costo anual de agua",null,{"$f":"F53","v":"Soles"},270]
[null,null,null,"Costo anual de electricidad",null,"Soles",2500,"Costo anual de electricidad",null,{"$f":"F54","v":"Soles"},2000]
[null,null,null,"Costo anual de combustible (total)",null,"Soles",null,"Costo anual de combustible (total)",null,{"$f":"F55","v":"Soles"}]
[null,null,null,"Costo anual de disposición final de rrss",null,"Soles",1000,"Costo anual de dispocición final de rrss",null,{"$f":"F56","v":"Soles"},500]
[null,null,null,"Otros (Ej. venta total, productividad, etc.)"]
[null,"Resultados cualitativos"]
[null,"AMBIENTALES"]
[]
[]
[]
[]
[null,"ECONÓMICOS"]
[]
[]
[]
[]
[null,"SOCIALES"]
[]
[]
[]
[]
[null,"RESULTADOS (cálculos automaticos)"]
[null,"Indicadores ",null,"Cantidad  ","unidades "]
[null,"Reducción del consumo de agua",null,{"$f":"(G41-K41)","v":10},{"$f":"F41","v":"m3"},"Porcentaje de reduccion de consumo de agua ",null,null,null,{"$f":"D76/G41","v":0.1}]
[null,"Ahorro en el consumo de agua",null,{"$f":"G53-K53","v":30},{"$f":"F53","v":"Soles"}]
[null,"Reducción del consumo de electricidad",null,{"$f":"(G42-K42)","v":250},{"$f":"F42","v":"kWh"},"Porcentaje de reduccion de consumo de electricidad  ",null,null,null,{"$f":"D78/G42","v":0.25}]
[null,"Ahorro en el consumo electrico ",null,{"$f":"G54-K54","v":500},{"$f":"F54","v":"Soles"}]
[null,"Reducción consumo de combustible",null,{"$f":"SUM((G43-K43)*D98,(G44-K44)*(1-D94)*D99,(G45-K45)*(1-D95)*D100,(G46-K46)*D101,(G47-K47)*D102)","v":1.8070097334172426E-2},"TJ","Porcentaje de reduccion de consumo de combustible ",null,null,null,{"$f":"D80/((G43*D98)+(G44*D99)+(G45*D100)+(G46*D101)+(G47*D102))","v":0.11259830691068419}]
[null,"Ahorro en el consumo de combustible",null,{"$f":"G55-K55","v":0},"Soles"]
[null,"Reducción en la generación de residuos",null,{"$f":"(G48-K48)","v":2.5},"T","Porcentaje de reducción en la generación de residuos",null,null,null,{"$f":"D82/G48","v":0.5}]
[null,"Reducción en el costo por disposición final de residuos",null,{"$f":"(G56-K56)","v":500},"Soles","Porcentaje de reducción en el costo por disposición final de residuos",null,null,null,{"$f":"D83/G56","v":0.5}]
[null,"Reducción de GEI (electricidad)",null,{"$f":"D78*0.3914/1000","v":9.7850000000000006E-2},"tCO2eq"]
[null,"Reducción de GEI (combustible)",null,{"$f":"(((G43-K43)*D98*(F98+H98*21+J98*310))+((G44-K44)*(1-D94)*D99*(F99+H99*21+J99*310))+((G45-K45)*(1-D95)*D100*(F100+H100*21+J100*310))+((G46-K46)*D101*(F101+H101*21+J101*310))+((G47-K47)*D102*(F102+H102*21+J102*310)))/1000","v":1.3523629716965497},"tCO2eq"]
[null,"TOTAL GEI reducido",null,{"$f":"D84+D85","v":1.4502129716965497},"tCO2eq reducidas"]
[]
[null,"REPLICABILIDAD"]
[]
[]
[]
[null,"FOTOS"]
[null,"IMAGEN\n(Fuente bibliográfica)"]
[]
[null,null,null,null,null,"Puntos "]
[]
[]
[null,"Petróleo Industrial",null,1.5071395665038287E-4,"TJ/gal",77400,"FE (kgCO2/TJ)",3,"FE (kgCH4/TJ)",0.6,"FE (kgN2O/TJ)"]
[null,"Diesel",null,1.3450438699049401E-4,"TJ/gal",74100,"FE (kgCO2/TJ)",3,"FE (kgCH4/TJ)",0.6,"FE (kgN2O/TJ)"]
[null,"Promedio Gasolina",null,1.1785939186739979E-4,"TJ/gal",69300,"FE (kgCO2/TJ)",3,"FE (kgCH4/TJ)",0.6,"FE (kgN2O/TJ)"]
[null,"Gas Natural",null,3.6036968416892283E-5,"TJ/m3",56126.26334612057,"FE (kgCO2/TJ)",1,"FE (kgCH4/TJ)",0.1,"FE (kgN2O/TJ)"]
[null,"GLP",null,4.7305190196203102E-5,"TJ/kg",63100,"FE (kgCO2/TJ)",1,"FE (kgCH4/TJ)",0.1,"FE (kgN2O/TJ)"]

{"sheet":"Instrucciones de la ficha","index":2,"n_rows":47,"n_cols":4,"rows_kept":47,"cut":false,"hidden":false,"merged":[[33,1,33,2],[33,3,33,8],[38,1,38,2],[38,3,38,8],[42,3,42,8],[42,1,42,2],[43,0,43,8],[46,0,46,8],[34,0,34,8],[37,1,37,2],[37,3,37,8],[36,3,36,8],[36,1,36,2],[39,0,39,8],[40,1,40,2],[40,3,40,8],[41,1,41,2],[44,0,44,8],[45,0,45,8],[41,3,41,8],[35,1,35,2],[35,3,35,8],[8,3,8,8],[10,3,10,8],[13,1,13,2],[16,1,16,2],[16,3,16,8],[15,1,15,2],[15,3,15,8],[23,0,23,8],[24,0,24,8],[17,3,17,8],[20,1,20,2],[18,3,18,8],[20,3,20,8],[21,1,21,2],[21,3,21,8],[17,1,17,2],[19,1,19,2],[19,3,19,8],[18,1,18,2],[32,3,32,8],[31,1,31,2],[31,3,31,8],[32,1,32,2],[25,0,25,8],[29,1,29,2],[29,3,29,8],[30,1,30,2],[30,3,30,8],[28,1,28,2],[28,3,28,8],[26,3,26,8],[27,3,27,8],[26,1,26,2],[27,1,27,2],[4,3,4,8],[0,0,0,8],[1,0,1,8],[2,3,2,8],[3,3,3,8],[2,1,2,2],[3,1,3,2],[4,1,4,2],[5,1,5,2],[6,3,6,8],[11,0,11,8],[22,0,22,8],[5,3,5,8],[12,0,12,8],[10,1,10,2],[6,1,6,2],[13,3,13,8],[14,1,14,2],[14,3,14,8],[7,1,7,2],[7,3,7,8],[8,1,8,2],[9,1,9,2],[9,3,9,8]]}
["Datos generales"]
["Este ítem consiste en completar la información referida a la empresa, tener en cuenta:"]
["1)","Nº RUC/ RUS",null,"Indicar el número de registro único de contribuyente/régimen único simplificado, según corresponda."]
["2)","Razón social/Nombre comercial",null,"Colocar el nombre oficial o denominación con el que su empresa se encuentra registrada. "]
["3)","Representante legal/gerente general",null,"Colocar los nombres y apellidos de la persona que actúa en nombre de la empresa, puede ser el representante legal o el gerente general. "]
["4)","Género del/la representante legal/gerente general",null,"Lista desplegable con elementos para seleccionar, considera: femenino, masculino, prefiero no decir."]
["5)","Sector económico al que pertenece su actividad económica",null,"Corresponde a la división de la actividad económica en el Perú, por ejemplo: industria manufacturera, agroindustria, minería, pesca, hidrocarburos, construcción, comercio, otros."]
["6)","De ser una actividad de la industria manufacturera, grupo al que pertenece",null,"Este ítem contiene una lista desplegable con elementos para seleccionar, considerando tres (13) grupos establecidos en la normativa del PRODUCE y MINAM. Para mayor orientación, tenga en cuenta la \"Clasificación Industrial Internacional Uniforme de todas las Actividades Económicas CIIU Revisión 4\", consulte los siguientes links:\n*https://busquedas.elperuano.pe/normaslegales/decreto-supremo-que-modifica-el-reglamento-de-gestion-ambien-decreto-supremo-n-006-2019-produce-1783564-1/?fbclid=IwAR2dHVit03lpFp4IlcbZtFUxyK1XDiV_km8NNX-9YdNYfEw0G4Jp6s8CtQE\n*https://busquedas.elperuano.pe/normaslegales/modifican-el-listado-que-forma-parte-integrante-de-la-rm-n-resolucion-ministerial-n-129-2020-minam-1870820-1/"]
["7)","Especifique su actividad económica",null,"En caso haya colocado \"industria manufacturera\" en el numeral 5), casillero de sector económico, indicar el nombre de su actividad industrial en forma detallada, dichas actividades se encuentran clasificadas en base a la \"Clasificación Industrial Internacional Uniforme de todas las Actividades Económicas CIIU Revisión 4\" establecido por el Instituto Nacional de Estadística e Informática (INEI), en ese sentido, puede acceder y consultar el documento en el siguiente link:  https://www.inei.gob.pe/media/MenuRecursivo/publicaciones_digitales/Est/Lib0883/Libro.pdf"]
["8)","Tamaño empresarial",null,"Lista desplegable que contiene elementos para seleccionar, indica el máximo valor de ventas que alcanza una empresa, en un año. "]
["9)","Datos de la persona que completa la ficha",null,"Indicar los nombres y apellidos, cargo, correo electrónico y teléfono de la persona que completará la ficha. "]
["Datos de la iniciativa"]
["Este apartado comprende la descripción de la iniciativa de economía circular que su empresa ha implementado, para ello, tener en consideración:"]
["10)","Nombre de la iniciativa",null,"Colocar un breve título que sintetice la iniciativa de EC implementada en su empresa. Tener en cuenta que, la iniciativa deberá estar relacionada a las siguientes medidas o estrategias de circularidad:\n\n*Cierra el círculo: Haz que tu producto no se convierta en residuos, que sea un recurso\nSe refiere a la idea de que nuestra economía actual que es lineal se transforme a un círculo, permitiendo que los residuos vuelvan a ingresar al sistema como recursos. Ejem.: Fabricación de productos prefabricados (adoquines, ladrillos King Kong, bloque de concreto) a partir de residuos de la construcción y demolición (RCD)\n*Mantén el crículo: Haz que tu producto perdure el mayor tiempo posible\nSe refiere a mantener en circulación un envase, producto, máquina o equipo descartado, en desuso o averiado, así como, cambiar sus partes o piezas para extender su vida útil. Estas medidas de circularidad permiten “retener” el valor del producto y la “restauración” en lugar de extraer más recursos. Ejm.: Cambia piezas averiadas de máquinas de confección por piezas nuevas o de segunda mano, Entrega/dona/comercializa sus equipos usados/ de segunda mano/ en desuso con otros proveedores para su posterior reutilización, etc.\n*Piensa circular: Diseña y fabrica eficiente y reduciendo el daño a las personas y el ambiente\nSe refiere a que el diseño de los productos incorpore principios de circularidad desde su concepción. Esta estrategia se encuentra relacionada a la aplicación de modelos de negocio, a través del diseño e innovación. Ejm.: Recircula el agua en su proceso productivo, utiliza materia prima de origen vegetal (biodegradable y no tóxica) en lugar de insumos tóxicos para fabricar productos de limpieza industrial.\n*Ve mas allá del círculo: Ayuda a que los recursos naturales no se dañen, ni se agoten, permite que se recuperen e incrementen\nEn lugar de degradar continuamente la naturaleza, construimos capital natural, mediante el retorno de nutrientes biológicos a la biósfera. Una EC es regenerativa porque los sistemas vivos pueden “regenerar” (curar y renovar) los recursos que se consumen. Ejm.: Fabrica bebidas a base de superfrutos (camu camu o aguaje), comprados directamente de las comunidades amazónicas que protegen a bosques de la deforestación, utiliza códigos para la trazabilidad de los productos (Blockchain), etc.\n \n(Máximo 150 palabras)"]
["11)","Descripción de la iniciativa",null,"Desarrollar una breve descripción, en formar general, de la iniciativa de EC implementada. Considerar el objetivo principal y/o la problemática (qué buscaba solucionar y/o mejorar), lo cual le llevó a optar por implementar la iniciativa de EC. \n(Máximo 150 palabras)."]
["12)","Temáticas de circularidad, relacionadas a las estrategias de EC:",null,"Lista desplegable que contiene las temáticas relacionas a las estrategias de EC (cierra el círculo, mantén el círculo, piensa circular y ve más allá del círculo), las cuales se definen a continuación: \n*Segregar: Segregar o separar tus residuos, de forma diferenciada, según sus características. Esto facilita su transformación y valorización, en el marco de una adecuada gestión de los residuos sólidos.  \n*Reciclar: Transformar de manera mecánica o industrial un residuo para generar materiales que pueden ser utilizados en la fabricación de nuevos productos. Es una operación de valorización.\n*Rescatar: Rescatar productos y/o envases que se encontraban averiados/fuera de uso/desgastados/antiguos/fuera de moda/, etc. para que estos sean utilizados como materia prima o insumo en la fabricación de nuevos productos.\n*Activos/infraestructura: Medida de circularidad relacionada a remanufacturar (cambiar), renovar (actualizar) o reparar (mantenimiento) maquinarias o equipos, que anteriormente se encontraban averiados/fuera de uso/desgastados/antiguos/fuera de moda, etc. Asimismo, permite gestionar eficientemente dichos activos. \n*Reutilizar: Volver a utilizar o seguir utilizando un producto o envase para el mismo fin para el que fue concebido. \n*Materia prima e insumos: Medida de circularidad relacionada a usar y gestionar eficientemente las materias primas, insumos, energía y agua, orientados hacia la reducción en su consumo\n*Estrategia de negocio: La economía circular y la sostenibilidad son parte de la propuesta de valor del negocio: misión, visión, principios y valores. \n*Ecodiseño: Incorporar criterios ambientales en la fase de diseño y desarrollo de un producto/envase.\n*Regenerar: Restaurar sistemas vivos dejándolos en condiciones iguales o mejores que al inicio."]
["13)","Estado",null,"Lista desplegable que contiene elementos para seleccionar, indicar el estado de ejecución de la iniciativa de EC implementada."]
["14)","Fecha de inicio de la iniciativa",null,"Colocar el año en que se implementó o se puso en marcha la iniciativa de EC."]
["15)","Tiempo de implementación",null,"Colocar el periodo de duración de la iniciativa de EC, desde su puesta en marcha. Por ejemplo: Desde Octubre 2018-Actualidad"]
["16)","Lugar donde se implementa la iniciativa",null,"Indicar el departamento, provincia, distrito y dirección (manzana, calle, urbanización, lote u otros) donde se ubica la iniciativa de EC. "]
["17)","Inversión",null,"Colocar el monto total aproximado que ha requerido la implementación de la iniciativa de EC. "]
["18)","Fuente financiera",null,"Indicar la institución u otra entidad que ha financiado la implementación de la iniciativa de EC. El financiamiento puede ser propio o ajeno, a través de instituciones públicas/privadas, las cuales otorgan fondos para la generación de proyectos de innovación. En caso la iniciativa haya sido financiada mediante una institución bancaria incluir la tasa de interés.  "]
["Impactos/beneficios"]
["Resultados cuantitativos"]
["Ambientales "]
["Para el llenado del presente apartado, completar la información de las variables, según la iniciativa de EC que su empresa ha implementado.\nPor ejemplo: si la iniciativa se refiere a \"recirculación de efluentes\", completar, principalmente, la información de las variables: \"consumo de agua\", \"% agua residual recirculada\" y \"costo anual de agua\", en caso que, la iniciativa repercuta además en otra variable (consumo anual de electricidad, consumo anual de combustible, etc.) deberá consignar dicha información."]
["19)","Consumo anual de agua (de preferencia en m3)",null,"*Considerar el promedio anual del consumo de agua, previo a la implementación de la iniciativa. \n*Precisar que, el valor consignado deberá corresponder al uso de agua para su operación, es decir, uso industrial no doméstico. \n*Posibles proveedores del recurso: agua subterránea (pozo), agua potable, compra mediante camiones cisterna, etc.\n*Para obtener el promedio anual considerar los consumos mensuales de agua facturados en su recibo o, de ser el caso, comprobantes de compra  (facturas, recibos, otros), según la siguiente ecuación: \n\n\n\n\nDonde:\n                                               \n                                                : Promedio anual del consumo de agua\n                                               : Sumatoria de los consumos mensuales de agua.\n\n*Teniendo en consideración lo descrito anteriormente, completar la información sobre el consumo de agua en el casillero \"después de la iniciativa de EC\"."]
["20)","Consumo anual de electricidad (de preferencia en kWh)",null,"*Considerar el promedio anual del consumo de energía eléctrica, previo a la implementación de la iniciativa. \n*Para obtener el promedio anual considerar los consumos mensuales facturados en su recibo de energía eléctrica, según la siguiente ecuación: \n\n\n\nDonde:\n\n                                                : Promedio anual del consumo de energía eléctrica\n                                               : Sumatoria de los consumos mensuales de energía eléctrica\n\n*Teniendo en consideración lo descrito anteriormente, completar la información sobre el consumo de energía eléctrica en el casillero \"después de la iniciativa de EC\"."]
["21)","Consumo anual de combustible (de preferencia en galones)",null,"*Considerar el promedio anual del consumo de combustible, previo a la implementación de la iniciativa. \n*Para obtener el promedio anual considerar los consumos mensuales de combustible facturados en su recibo -en caso sea, gas natural GNV- ó en comprobantes de compra  (facturas, recibos, otros) -en caso sea, petróleo, diesel, gasolina,gas natural, GLP etc., según la siguiente ecuación: \n\n\n\n\nDonde:\n\n                                                     : Promedio anual del consumo de combustible\n                                                     : Sumatoria de los consumos mensuales de combustible, comprende meses de enero hasta diciembre\n\n*Teniendo en consideración lo descrito anteriormente, completar la información sobre el consumo de combustible en el casillero \"después de la iniciativa de EC\"."]
["22)","Generación de residuos (de preferencia en toneladas o kilogramos)",null,"*Considerar el promedio anual del volumen de residuos generados, previo a la implementación de la iniciativa. \n*Para obtener el promedio anual considerar el volumen mensual de los residuos generados, según la siguiente ecuación: \n\n\n\n\nDonde:\n\n                                                              : Promedio anual del volumen de residuos generados\n                                                              : Sumatoria de los volúmenes mensuales de residuos generados\n\n*Teniendo en consideración lo descrito anteriormente, completar la información sobre el consumo de combustible en el casillero \"después de la iniciativa de EC\"."]
["23)","% de agua residual recirculada",null,"*Considerar que, las aguas residuales (efluentes) no domésticas son descargas de líquidos producidos por alguna actividad económica comercial e industrial, distinta a la generada por los usuarios domésticos, quienes descargan aguas residuales domésticas como producto de la preparación de alimentos, del aseo personal y de desechos fisiológicos¹.\n*Por otro lado, precisar que, las aguas residuales industriales requieren el tratamiento apropiado, previo a su recirculación (devolverse al proceso productivo) o reuso (uso en riego de áreas verdes, limpieza de la planta industrial, otros). Al respecto, existen diversos sistemas de tratamiento que permiten eliminar los contaminantes del efluente industrial, en ese sentido, el tipo o nivel de tratamiento elegido dependerá de la naturaleza de los contaminantes, de la carga de contaminación y del uso final al cual será destinado dicho efluente. \n*Para obtener el porcentaje (%) de agua residual o efluente recirculado, deberá realizar la siguiente ecuación: \n\n\n\n\nDonde:\n                                                : Porcentaje de efluente recirculado en el (los) procesos productivos, en un año.    \n                                                : Efluente recirculado en el (los) procesos productivos, en un año.                                  \n                                                : Efluente total generado en el (los) procesos productivos, en un año.  \n\n(1)Reglamento de Valores Máximos Adminsibles (VMA) para descargas de aguas residuales no domésticas en el sistema de alcantarilldo sanitario, aprobado mediante Decreto Supremo Nº 010-2019-VIVIENDA."]
["24)","% de mermas, subproductos u otros de similar naturaleza",null,"*Considerar que, las mermas, subproductos u otros de similar naturaleza constituyen materiales residuales que pueden ser reinsertados o aprovechados (reuso, reciclaje, otros) como materia prima o insumos para la fabricación de diversos productos. Esto, debido a la relevancia de que las empresas incorporen estrategias de circularidad, con la finalidad de aprovechar al máximo la reutilización de productos, componentes y materiales y optimizar la creación de valor¹.\n*Para obtener el porcentaje (%) de merma, subproductos u otros, deberá realizar la siguiente ecuación: \n\n\n\n\n\nDonde:\n                                                : Porcentaje de material residual (merma, subproducto u otro similar) reinsertado en el (los) procesos productivos o  \n                                                  aprovechado para otros fines, en un año.    \n                                                : Material residual reinsertado o aprovechado, en un año.                                  \n                                                : Material residual total generado en el (los) procesos productivos, en un año.  \n\n(1)Adaptación según lo establecido en la Modificación de la Ley de Gestión Integral de Residuos, aprobada mediante Decreto Legislativo Nº 1501 y, la Guía Peruana “GP 127:2021. ECONOMÍA CIRCULAR. Marco para la implementación de los principios de la economía circular en las organizaciones"]
["25)","% de energía renovable",null,"*Considerar que, la energía es un recurso esencial para los procesos productivos que incluyen el funcionamiento de las máquinas, equipos e instalaciones, en ese sentido, es importante que se fomente el intercambio de la energía convencional de fuentes no renovables (petróleo, carbón, etc.) o altamente contaminantes, por el uso de energía renovable de fuentes naturales (solar, eólica, geotérmica, biomasa, etc.). La aplicación de las energías renovables mejora la competitividad de las empresas¹. \nPor ejemplo: Instalación de paneles solares que generan energía renovable para ser aprovechada en procesos productivos.\n*Para obtener el porcentaje (%) de energía renovable, deberá realizar la siguiente ecuación: \n\n\n\n\n\nDonde:\n                                                : Porcentaje de energía renovable utilizada en el (los) procesos productivos, en un año.    \n                                                : Energía renovable utilidad en el (los) procesos productivos, en un año en kWh.                                  \n                                                : Energía total utilizada en el (los) procesos productivos, en un año en kWh.  \n\n(1) La industria de la energía renovable en el Perú: 10 años de contribuciones  a la mitigación del cambio climático. Organismo Supervisor de la Inversión en Energía y Minería (Osinergmin). Lima. Primera edición. Febrero 2017."]
["26)","Otros",null,"*Considerar otro tipo de indicadores que permitan medir las iniciativas de EC implementadas por la empresa. Por ejemplo: En una economía circular, los materailes y productos deben mantener el mayor valor posible durante el mayor tiempo, en ese sentido, algunos indicadores relacionado a ello, serían % materia prima reducida, % material reciclado utilizado, % materia prima de fuente renovable, entre otros"]
["Económicos"]
["27)","Costo anual del agua (soles)",null,"*Considerar el promedio anual del costo por consumo de agua, previo a la implementación de la iniciativa.\n*Precisar que, el valor consignado deberá corresponder al costo por uso de agua en su operación, es decir, uso industrial no doméstico. \n*Para obtener el promedio anual considerar los costos mensuales por consumo de agua facturados en su recibo o, de ser el caso, comprobantes de compra  (facturas, recibos, otros), según la siguiente ecuación: \n\n\n\nDonde:\n\n                                                : Promedio anual (soles) del costo por consumo de agua\n                                               : Sumatoria de los costos por los consumo mensual de agua\n\n*Teniendo en consideración lo descrito anteriormente, completar la información sobre el costo anual por consumo de agua en el casillero \"después de la iniciativa de EC\"."]
["28)","Costo anual del electricidad (soles)",null,"*Considerar el promedio anual del costo por consumo de energía eléctrica, previo a la implementación de la iniciativa.\n*Para obtener el promedio anual considerar los costos mensuales facturados en su recibo de energía eléctrica, según la siguiente ecuación: \n\n\n\nDonde:\n\n                                                : Promedio anual (soles) del costo por consumo de energía eléctrica\n                                               : Sumatoria de los costos por los consumos mensuales de agua energía eléctrica\n\n*Teniendo en consideración lo descrito anteriormente, completar la información sobre el costo anual por consumo de energía eléctrica en el casillero \"después de la iniciativa de EC\"."]
["29)","Costo anual de combustible",null,"*Considerar el promedio anual del costo por consumo de combustible, previo a la implementación de la iniciativa.\n*Para obtener el promedio anual considerar los costos mensuales de combustible facturados en su recibo -en caso sea, gas natural GNV- ó en comprobantes de compra  (facturas, recibos, otros) -en caso sea, petróleo, diesel, gasolina, etc., según la siguiente ecuación: \n\n\n\nDonde:\n\n                                                : Promedio anual (soles) del costo por consumo de energía eléctrica\n                                               : Sumatoria de los costos por los consumos mensuales de agua energía eléctrica\n\n*Teniendo en consideración lo descrito anteriormente, completar la información sobre el costo anual por consumo de energía eléctrica en el casillero \"después de la iniciativa de EC\"."]
["30)","Otros ",null,"*Considerar otro tipo de indicadores que midan el impacto en los costos, productividad, ventas totales u otros relacionados. Por ejemplo: para medir la productividad se puede aplicar la siguiente fórmula: (productos o servicios producidos) / (Insumos o recursos utilizados). "]
["Resultados cualitativos"]
["31)","Ambientales",null,"*Colocar los impactos y beneficios ambientales que se obtendrían por la implementación de la iniciativa de EC. Por ejemplo: reducción de la contaminación ambiental por la generación de efluentes industriales, disminución de residuos que se disponen en el ambiente que pueden impactar negativamente a los ecosistemas, reducción del agotamiento de recursos por la eficiencia en su uso de los mismos, entre otros (Máximo 150 palabras)."]
["32)","Económicos",null,"*Mencionar los impactos y beneficios económicos que se obtendrían por la implementación de la iniciativa de EC. Por ejemplo: aumento de ingresos por la creación de una nueva línea de negocio en base a productos reciclados, reducción de costos por la disminución del consumo de recursos, disminución de costos por la disposición de residuos a través de empresas operadoras (Máximo 150 palabras)."]
["33)","Sociales",null,"*Colocar los impactos y beneficios sociales que se obtendrían por la implementación de la iniciativa de EC. Por ejemplo: aumento de ingresos económicos a la población local, aumento de empleo, entre otros (Máximo 150 palabras)."]
["Replicabilidad"]
["En caso tenga conocimiento de que la iniciativa implementada por su empresa pueda ser replicada/repetida en otra empresa (sea de la mismo rubro u otra actividad económica), considerar completar el presente apartado (Máximo 150 palabras)."]
["Fotos"]
["Colocar fotos u otros elementos que evidencien o estén relacionados con la implementación de la iniciativa de EC (mínimo dos fotografías)."]

{"sheet":"Lista_Act_EC","index":3,"n_rows":15,"n_cols":3,"rows_kept":15,"cut":false,"hidden":true,"merged":[]}
[]
[]
[null,null,"Industria de alimentos"]
[null,null,"Industria de bebidas"]
[null,null,"Industria textil"]
[null,null,"Industria de cuero y productos"]
[null,null,"Producción de madera y fabricación de productos de madera y corcho, excepto muebles; fabricación de artículos de paja y de materiales trenzables\n"]
[null,null,"Fabricación de papel y de productos de papel; impresión y reproducción de grabaciones\n"]
[null,null,"Fabricación de sustancias y productos químicos; fabricación de productos farmacéuticas, sustancias químicas medicinales y productos botánicos de uso farmacéuticos "]
[null,null,"Industria de productos de caucho y de plástico"]
[null,null,"Fabricación de otros productos minerales no metálicos\n"]
[null,null,"Fabricación de metales comunes; fabricación de productos elaborados de metal, excepto maquinaria y equipo\n"]
[null,null,"Industria de productos de informática y equipos eléctricos\n"]
[null,null,"Fabricación de maquinaria y equipo n.c.p., vehículos automotores, remolques y semirremolques, otros equipos de transporte\n"]
[null,null,"Fabricación de muebles, reparación e instalación de maquinaria y/o equipos y otras industrias manufactureras"]

{"sheet":"CONCEPTO11R`S","index":4,"n_rows":13,"n_cols":7,"rows_kept":13,"cut":false,"hidden":true,"merged":[[1,0,1,1],[2,0,4,0],[5,0,8,0],[9,0,11,0]]}
[]
["Estrategia de las 11 R´s",null,"Definiciones propuestas","Palabras claves","Información para aclarar algunos términos utilizados en las definiciones","Definición extraída de documentos consultados","Preguntas formuladas en la calculadora"]
["CERRAR EL FLUJO\n\n(Reducir el impacto: Usar residuos como recursos)\n\nAdentro o afuera de la mipyme\n","Recover - Recuperar","Separar/segregar los residuos según tipo: aprovechables (papel, cartón, orgánico, metal, vidrio, plástico), no aprovechables (residuos sanitarios, otros) y peligrosos, para su posterior aprovechamiento ","Separar/segregar","Según NTP 900.058-2019\nAprovechamiento: volver a obtener un beneficio del bien, artículo, elemento o parte del mismo que constituye residuo sólido\nSegún DS 001-2022-MINAM\nAprovechamiento: Volver a obtener un beneficio del bien, artículo, elemento o parte de este que constituye residuo sólido orgánico e inorgánico.","Recuperación técnicamente factible y económicamente viable de nutrientes, compuestos, materiales, partes, componentes o incluso productos (dependiendo de la organización) al mismo nivel de equivalencia funcional a través de la reutilización, reparación, reacondicionamiento, reutilización, refabricación, reciclaje,  biodegradación. (incluido el compostaje)","¿Separa/ segrega sus residuos pot tipo? "]
[null,"Recycle - Reciclar","Aprovechar un residuo mediante la recuperación del mismo a su nivel material, permitiendo así el uso de esos materiales en la fabricación de productos con fines similares/iguales al productos original o para cualquier otra finalidad","Aprovechamiento/valorización","Según NTP 900.058-2019\nReciclaje: toda actividad que permite aprovechar un residuo mediante un proceso de transformación material, para cumplir su fin inicial u otros fines ","Recuperar un producto a su nivel material, permitiendo así el uso de esos materiales en la fabricación de nuevos productos, materiales o sustancias, para objetivos similares al productos original o para otros fines","¿Aprovecha residuos para generar algún beneficio? "]
[null,"Repurpose -Replantear","Medida de circularidad que permite utilizar materiales, partes, piezas, productos y/o envases fuera de uso o descartados para comercializarlo o fabricar un nuevo producto (función distinta o diferente al original).","Innovar",null,"Recuperar un producto descartado o algunas de sus partes, en un nuevo producto con una función diferente.","¿Rescata materiales, partes, piezas, productos y/o envases fuera de uso o descartados para venderlas y/o fabricar nuevos producto?"]
["DESACELERAR EL FLUJO\n\n(Optimizar: mantener los productos en uso por mayor tiempo)\n\nAdentro de la mipyme","Remanufacture - Remanufacturar","Medida de circularidad que permite utilizar partes o piezas de otras -maquinarias, equipos, productos o envases- en desuso (descartados), en aquellos que se encuentren averíados pero cumplen la misma función.","Rehacer",null,"Recuperar partes o piezas de un producto descartado o en desuso, en un nuevo producto que cumple la misma función (como en estado casi nuevo).","¿Utiliza partes o piezas de otras maquinarias/ equipos/ productos/ envases en desuso para remanufacturar aquellos que estén averiados?"]
[null,"Refurbish - Renovar","Renovar, restaurar o actualizar -maquinarias, equipos, productos o envases- antiguos para que se puedan volver a utilizar, sin cambios en la funcionalidad del producto","Actualizar/restaurar",null,"Renovar o actualizar un producto antiguo, implica una restauración importante, sin cambios en la funcionalidad del producto.","¿Renueva sus maquinarias/ equipos/ productos/ envases antiguos para que puedan funcionar con un rendimiento similar a uno nuevo?"]
[null,"Repair - Reparar","Reparar y realizar mantenimiento correctivo (reparación habitual) de maquinarias y equipos averíados, para que se puedan volver a utilizar o mantengan su vida útil.","Mantener/arreglar",null,"Reparar y mantener un producto descartado o defectuoso, de forma que pueda ser utilizado con su función original.","¿Realizan mantenimiento correctivo a sus maquinarias y equipos que estén averiados para que mantengan su vida útil con la misma función?"]
[null,"Reuse - Reutilizar","Medida de circularidad que permite volver a utilizar un producto/envase (en buen estado) para el mismo fin para el que fue concebido. ","Repetir ","Según DS 001-2022-MINAM\nReutilización: Actividad que permite volver a utilizar los residuos sólidos como componentes y/o materiales, para darles un uso diferente a aquel para el que fueron concebidos. Se considera una forma de valorización.\n\nSe ha considerado que debe cumplir su función original porque si fuese una función distinta sería considerado como replantear. La finalidad es mantener el producto y su vida útil el mayor tiempo posible. ","Dar un nuevo uso a un producto descartado que aún se encuentra en buenas condiciones y cumple con su función original (y no es residuo) para el mismo fin para el que fue concebido."," ¿Realiza mantenimiento preventivo de sus maquinarias y equipos en su negocio para extender su vida útil?\n¿Promueve que sus clientes reutilicen sus productos/ envases?\n¿Capta productos/ envases luego de su uso por los clientes para hacerles mantenimiento y volver a ofrecerlos al mercado?"]
["CONTRAER EL FLUJO\n\n(Diseño: diseñar sin residuos)\nuso inteligente del producto","Reduce - Reducir","Medida de circularidad que permite incrementar la eficiencia (reducción del uso de recursos y energía) en la fabricación de un producto/envase","Minimizar/eficiencia",null,"Incrementar la eficiencia en la fabricación y el uso del producto  al consumir menos recursos naturales y materiales.  ","¿Implementa prácticas para usar la menor cantidad de materias primas e insumos en sus procesos productivos?\n¿Implementa prácticas para reducir el consumo de agua en su negocio?\n¿Implementa prácticas para reducir el consumo de energía en su negocio?"]
[null,"Rethink - Repensar","Medida de circularidad que aborda el diseño del producto/envase y permite utilizar -subproducto, merma, materia prima secundaria- una mayor cantidad de veces reduciendo el impacto ambiental (facilitando su reciclaje, menor uso de recursos, etc.)  ","Diseño","Según DS 001-2022-MINAM\nMateria prima secundaria: Se denomina materia prima secundaria a todos los insumos, materias o recursos, distintos de las materias primas provenientes de recursos naturales, y que proceden de un proceso de transformación o recuperación, uso o consumo, perdiendo su característica de residuo; de forma tal que es posible su uso directo en un nuevo proceso de producción","Hacer que el uso del producto sea más intensivo (a través de productos como servicio, reutilización y modelos compartidos o poniendo productos multifuncionales en el mercado)","¿Reinserta subproductos, mermas, materiales residuales u otros en sus procesos productivos?\n¿Ofreces programas de fidelización del cliente para la reposición de los productos/ envases? \n¿Su producto/ envase incorpora todas las siguientes características desde su diseño?\n*Incorpora material reciclado y/o renovable\n*Facilita su reciclaje (forma, color, composición, otros)\n*En su uso se consume la menor cantidad de recursos (agua, energía, materiales).\n*Otros que reduzcan el impacto ambiental "]
[null,"Refuse - Rechazar","Rechazar y/o sustituir las materia primas o insumos que se utilizan en la fabricación de un producto/envase de amplia extensión de vida útil, para generar un impacto menor al ambiente.","Sustituir",null,"Lograr que un producto sea innecesario al abandonar su función u ofreciendo la misma función por un producto o servicio radicalmente diferente.","¿Sustituye materias primas o insumos para que no dañen el ambiente ni la salud humana? (composición)\n¿Su producto está diseñado para usarlo la mayor cantidad de veces posible? (ampliar la extensión de vida útil)"]
["REGENERAR EL FLUJO","Regenerate - Regenerar","Medida de circularidad que permite a una empresa tener la capacidad de restaurar sistemas vivos (como ecosistemas, suelo, agua, etc.)  dejandolo en condiciones iguales o mejores que al inicio. ","Restaurar",null,"Tener la capacidad de restaurar los recursos materiales y mejorar la salud del ecosistema para garantizar la productividad y otros beneficios (p. ej., captura de carbono, biodiversidad y otros servicios del ecosistema)","¿Realiza prácticas que conserven o mejoren los recursos naturales que utiliza para su producto?\n¿El agua consumida en sus operaciones de su negocio es regresada al origen o vertida al desagüe en condiciones iguales o mejores con las que ingresó a su negocio?\n ¿Utiliza energías renovables (solar, eólica, biomasa, geotermica, etc.) en sus operaciones?"]

{"sheet":"GRAFICA-CALCUL","index":5,"n_rows":24,"n_cols":44,"rows_kept":24,"cut":false,"hidden":true,"merged":[[23,29,23,34],[3,5,3,6],[3,15,3,17],[3,38,3,40],[3,35,3,37],[20,29,20,34],[19,29,19,34],[3,9,3,10],[3,7,3,8],[3,21,3,22],[2,21,2,22],[2,34,2,43],[22,29,22,34],[1,2,1,30],[2,27,15,27],[2,28,2,30],[3,41,3,43],[3,18,3,20],[2,5,2,6],[2,7,2,8],[2,9,2,10],[2,15,2,17],[2,18,2,20],[2,11,2,14],[3,11,3,14],[21,29,21,34]]}
[]
[null,null,"PREGUNTAS"]
[null,"R`s","RECUPERAR","RECICLAR","REPLANTEAR","REMANUFACTURA",null,"RENOVAR",null,"REPARAR",null,"REUTILIZAR",null,null,null,"REDUCIR",null,null,"REPENSAR",null,null,"RECHAZAR",null,null,null,null,null,null,"REGENERAR",null,null,null,null,null,"PUNTAJES"]
[null,"PUNTAJES POR R",1,2,3,4,null,4,null,4,null,4,null,null,null,5,null,null,6,null,null,7,null,null,null,null,null,null,"+2","+2","+2",null,null,"Nº PREG","PUNTAJE TOTAL POR R","SI",null,null,"PARCIAL",null,null,"NO"]
[null,"EMPRESAS","P1","P2","P3","P4","P5","P6","P7","P8","P9","P10","P11","P12","P13","P14","P15","P16","P17","P18","P19","P20","P21","TOTAL","SI","PARCIAL","NO",null,"P19","P20","P21",null,"Recuperar",1,1,1,{"$f":"AJ5*AH5","v":1},{"$f":"(AK5*$AL$15)/$AK$15","v":2.5031289111389236E-2},0.5,{"$f":"AM5*AH5","v":0.5},{"$f":"(AN5*$AO$15)/$AN$15","v":1.2626262626262628E-2},{"$f":"+AJ5*0.02","v":0.02},{"$f":"AP5*AH5","v":0.02},{"$f":"(AQ5*$AR$15)/$AQ$15","v":5.006257822277847E-4}]
[null,"E1",1,2,1.5,2,1,2,1,2,1,1,1,1,1,1.5,1,0.2,2,1,0.2,3.5,3.5,{"$f":"SUM(C6:W6)","v":30.4},{"$f":"COUNTIF(C6,1)+COUNTIF(D6,2)+COUNTIF(E6:E6,1.5)+COUNTIF(F6:G6,2)+COUNTIF(H6:I6,2)+COUNTIF(J6:K6,2)+COUNTIF(L6:O6,2.5)+COUNTIF(P6:R6,1.5)+COUNTIF(S6:U6,2)+COUNTIF(W6,6)","v":8},{"$f":"COUNTIF(C6,0.5)+COUNTIF(D6,1)+COUNTIF(E6:E6,1)+COUNTIF(F6:G6,1)+COUNTIF(H6:I6,1)+COUNTIF(J6:K6,1)+COUNTIF(L6:O6,1.5)+COUNTIF(P6:R6,1)+COUNTIF(S6:U6,1)+COUNTIF(W6,3)","v":5},{"$f":"COUNTIF(C6,0.2)+COUNTIF(D6,0.2)+COUNTIF(E6:E6,0.2)+COUNTIF(F6:G6,0.2)+COUNTIF(H6:I6,0.2)+COUNTIF(J6:K6,0.2)+COUNTIF(L6:O6,0.2)+COUNTIF(P6:R6,0.2)+COUNTIF(S6:U6,0.2)+COUNTIF(W6,0.2)","v":2},null,null,null,null,null,"Reciclar",1,2,2,{"$f":"AJ6*AH6","v":2},{"$f":"(AK6*$AL$15)/$AK$15","v":5.0062578222778473E-2},1,{"$f":"AM6*AH6","v":1},{"$f":"(AN6*$AO$15)/$AN$15","v":2.5252525252525256E-2},{"$f":"+AJ6*0.02","v":0.04},{"$f":"AP6*AH6","v":0.04},1.0012515644555694E-3]
[null,"E2",null,null,null,null,null,null,null,null,null,null,null,null,null,null,null,null,null,null,null,null,null,null,null,null,null,null,null,null,null,null,"Replantear",1,3,3,3,7.5093867334167702E-2,1.5,1.5,3.7878787878787887E-2,0.06,0.06,1.5018773466833539E-3]
[null,"E3",null,null,null,null,null,null,null,null,null,null,null,null,null,null,null,null,null,null,null,null,null,null,null,null,null,null,null,null,null,null,"Remanufacturar",2,4,2,4,0.10012515644555695,1,2,5.0505050505050511E-2,0.04,0.08,2.0025031289111388E-3]
[null,"E4",null,null,null,null,null,null,null,null,null,null,null,null,null,null,null,null,null,null,null,null,null,null,null,null,null,null,null,null,null,null,"Renovar",2,4,2,4,0.10012515644555695,1,2,5.0505050505050511E-2,0.04,0.08,2.0025031289111388E-3]
[null,"E5",null,null,null,null,null,null,null,null,null,null,null,null,null,null,null,null,null,null,null,null,null,null,null,null,null,null,null,null,null,null,"Reparar",2,4,2,4,0.10012515644555695,1,2,5.0505050505050511E-2,0.04,0.08,2.0025031289111388E-3]
[null,"E6",null,null,null,null,null,null,null,null,null,null,null,null,null,null,null,null,null,null,null,null,null,null,null,null,null,null,null,null,null,null,"Reutilizar",4,4,1,4,0.10012515644555695,0.5,2,5.0505050505050511E-2,0.02,0.08,2.0025031289111388E-3]
[null,"E7",null,null,null,null,null,null,null,null,null,null,null,null,null,null,null,null,null,null,null,null,null,null,null,null,null,null,null,null,null,null,"Reducir",3,5,1.65,4.9499999999999993,0.12390488110137669,0.8,2.4000000000000004,6.0606060606060622E-2,3.3000000000000002E-2,9.9000000000000005E-2,2.4780976220275344E-3]
[null,"E8",null,null,null,null,null,null,null,null,null,null,null,null,null,null,null,null,null,null,null,null,null,null,null,null,null,null,null,null,null,null,"Repensar ",3,6,2,6,0.1501877346683354,1,3,7.5757575757575774E-2,0.04,0.12,3.0037546933667078E-3]
[null,"E9",null,null,null,null,null,null,null,null,null,null,null,null,null,null,null,null,null,null,null,null,null,null,null,null,null,null,null,null,null,null,"Rechazar",2,7,3.5,{"$f":"AJ14*AH14","v":7},0.17521902377972465,1.7,3.4,8.585858585858587E-2,7.0000000000000007E-2,0.14000000000000001,3.5043804755944936E-3]
[null,"E10",null,null,null,null,null,null,null,null,null,null,null,null,null,null,null,null,null,null,null,null,null,null,null,null,null,null,null,null,null,null,"TOTAL",{"$f":"SUM(AH5:AH14)","v":21},{"$f":"SUM(AI5:AI14)","v":40},null,{"$f":"SUM(AK5:AK14)","v":39.950000000000003},1,null,{"$f":"SUM(AN5:AN14)","v":19.799999999999997},0.5,null,{"$f":"SUM(AQ5:AQ14)","v":0.79900000000000004},0.02]
[null,"TOTAL ",{"$f":"SUM(C6:C15)","v":1},{"$f":"SUM(D6:D15)","v":2},1.5,2,1,2,1,2,1,1,1,1,1,1.5,1,0.2,2,1,0.2,null,3.5,null,null,null,null,null,0,0,0,null,null,null,null,null,null,null,null,null,{"$f":"SUM(AO5:AO14)","v":0.5},null,null,{"$f":"SUM(AR5:AR14)","v":1.9999999999999997E-2}]
[null,null,null,null,null,null,null,null,null,null,null,null,null,null,null,null,null,null,null,null,null,null,null,null,null,null,null,null,null,null,null,null,"Regenerar",3,6,2,{"$f":"AJ17*AH17","v":6},0.06,1,{"$f":"AM17*AH17","v":3},0.03,0,0,0]
[]
[]
[null,null,null,null,null,null,null,null,null,null,null,null,null,null,null,null,null,null,null,null,null,null,null,null,null,null,null,null,null,"Eres una mipyme con un alto nivel de implementación de medidas de circularidad, eres un ejemplo",null,null,null,null,null,"80-100"]
[null,null,null,null,null,null,null,null,null,null,null,null,null,null,null,null,null,null,null,null,null,null,null,null,null,null,null,null,null,"Ya estas camino a la circularidad, sigue motivado",null,null,null,null,null,"51-79"]
[null,null,null,null,null,null,null,null,null,null,null,null,null,null,null,null,null,null,null,null,null,null,null,null,null,null,null,null,null,"Ya estas camino a la circularidad, tienes oportunidades de mejorar en la implementación de tus medidas",null,null,null,null,null,"26-50"]
[null,null,null,null,null,null,null,null,null,null,null,null,null,null,null,null,null,null,null,null,null,null,null,null,null,null,null,null,null,"Has iniciado el camino de la circularidad",null,null,null,null,null,"3-25"]
[null,null,null,null,null,null,null,null,null,null,null,null,null,null,null,null,null,null,null,null,null,null,null,null,null,null,null,null,null,"Te invitamos a iniciar tu viaje a la circularidad",null,null,null,null,null,"0-2"]

{"sheet":"REPORTE","index":6,"n_rows":70,"n_cols":5,"rows_kept":70,"cut":false,"hidden":true,"merged":[[61,1,61,6],[62,1,62,6],[63,1,63,6],[64,1,64,6],[65,1,65,6],[56,1,56,6],[57,1,57,6],[58,1,58,6],[59,1,59,6],[60,1,60,6],[36,0,36,6],[44,0,44,6],[38,0,38,4],[55,1,55,6],[54,1,54,6]]}
["Datos de la empresa"]
[]
[]
[]
[]
[]
["Nivel de circularidad"]
[]
[]
[]
[]
[]
["Te invitamos a iniciar tu viaje a la circularidad","Has iniciado el camino de la circularidad","Ya estas camino a la circularidad, tienes oportunidades de mejorar ","Ya estas camino a la circularidad, sigue motivado","Eres mipyme circular, eres un ejemplo"]
["0-11%","12-33%","34-54%","55-79%","80-100%"]
[]
["Resultados"]
[]
["10 Rs","Puntaje","Puntaje obtenido (%)"]
["Recuperar",1]
["Reciclar",2]
["Replantear",3]
["Remanufacturar",4]
["Renovar",4]
["Reparar",4]
["Reutilizar",5]
["Repensar",6]
["Reducir",6]
["Rechazar",6]
["TOTAL "]
[]
["Bonificación circular"]
[]
[]
["Regenerar"]
[]
[]
["¡Felicitaciones! Haz logrado realizar cambios significativos en tus operaciones hacia un modelo circular"]
[]
["Recomendaciones (a nivel general según el resultado)"]
[]
[]
[]
[]
[]
["Diseña tu compromiso 2023 e implementa medidas de circularidad"]
["Selecciona DOS de las R`s que te gustaría mejorar o implementar para tu empresa"]
["EJEMPLO","Objetivo","Plazo (De 6 meses a 1 año)"]
["Reciclar","Mejoro en un 20% el reciclaje de partes, piezas o materiales de mis productos fabricados"]
[]
[]
[]
[]
["Oportunidades (no se inlcuye en el PILOTO)"]
[]
["11 Rs","Oportunidades"]
["Recuperar","Colocar texto en base a las preguntas a las cuales respondió \"SI\", \"NO\" o \"Parcialmente\" "]
["Reciclar"]
["Replantear"]
["Remanufacturar"]
["Renovar"]
["Reparar"]
["Reutilizar"]
["Repensar"]
["Reducir"]
["Rechazar"]
["Regenerar"]
[]
[]
["¡ENTÉRATE MÁS SOBRE ESTA NUEVA FORMA DE PRODUCIR INCRMENTANDO LA PRODUCTIVIDAD Y COMPETITIVIDAD!"]
["(Colocar enlace de la Coalición)"]

{"sheet":"DEPART_PROV","index":7,"n_rows":23,"n_cols":26,"rows_kept":23,"cut":false,"hidden":true,"merged":[]}
[]
[]
[null,"Amazonas","Áncash","Apurímac","Arequipa","Ayacucho","Cajamarca","Callao","Cusco","Huancavelica","Huánuco","Ica","Junín","La_Libertad","Lambayeque","Lima","Loreto","Madre_de_Dios","Moquegua","Pasco","Piura","Puno","San_Martín","Tacna","Tumbes","Ucayali_"]
[null,"Bagua","Aija","Abancay","Arequipa_","Cangallo","Cajabamba","Callao","Acomayo","Acobamba","Ambo","Chincha ","Chanchamayo ","Ascope ","Chiclayo ","Barranca ","Alto_Amazonas ","Manu ","General Sánchez Cerro ","Daniel Alcides Carrión ","Ayabaca ","Azángaro ","Bellavista ","Candarave ","Contralmirante Villar ","Atalaya "]
[null,"Bongará","Antonio_Raymondi","Andahuaylas","Camaná","Huamanga","Cajamarca_",null,"Anta","Angaraes","Dos de Mayo","Ica_","Chupaca ","Bolívar ","Ferreñafe ","Cajatambo ","Datem del Marañón ","Tahuamanu ","Ilo ","Oxapampa ","Huancabamba ","Carabaya ","El Dorado ","Jorge Basadre ","Tumbes_","Coronel_Portillo "]
[null,"Chachapoyas","Asunción","Antabamba","Caravelí","Huanca Sancos","Celendín",null,"Calca","Castrovirreyna","Huacaybamba","Nazca ","Concepción ","Chepén ","Lambayeque_","Canta ","Loreto_ ","Tambopata ","Mariscal Nieto ","Pasco_","Morropón ","Chucuito ","Huallaga ","Tacna_","Zarumilla ","Padre Abad "]
[null,"Condorcanqui","Bolognesi","Aymaraes","Castilla","Huanta","Chota",null,"Canas","Churcampa","Huamalíes","Palpa ","Huancayo ","Gran Chimú ",null,"Cañete ","Mariscal Ramón Castilla ",null,null,null,"Paita ","El Collao ","Lamas ","Tarata ",null,"Purús"]
[null,"Luya","Carhuaz","Chincheros","Caylloma","La Mar","Contumazá",null,"Canchis","Huancavelica_","Huánuco_","Pisco ","Jauja ","Julcán ",null,"Huaral ","Maynas ",null,null,null,"Piura_","Huancané ","Mariscal Cáceres "]
[null,"Rodríguez de Mendoza","Carlos_Fermín_Fitzcarrald","Cotabambas","Condesuyos","Lucanas","Cutervo",null,"Chumbivilcas","Huaytará","Lauricocha ",null,"Junín_","Otuzco ",null,"Huarochirí ","Putumayo",null,null,null,"Sechura ","Lampa ","Moyobamba "]
[null,"Utcubamba","Casma","Grau","Islay","Parinacochas","Hualgayoc",null,"Cusco_","Tayacaja","Leoncio Prado",null,"Satipo ","Pacasmayo ",null,"Huaura ","Requena ",null,null,null,"Sullana ","Melgar ","Picota "]
[null,null,"Corongo",null,"La Uniòn","Pàucar del Sara Sara","Jaén",null,"Espinar",null,"Marañón",null,"Tarma ","Pataz ",null,"Lima_","_Ucayali",null,null,null,"Talara ","Moho ","Rioja "]
[null,null,"Huaraz",null,null,"Sucre","San Ignacio",null,"La Convención",null,"Pachitea",null,"Yauli ","Sánchez Carrión ",null,"Oyón ",null,null,null,null,null,"Puno_ ","San Martín_"]
[null,null,"Huari",null,null,"Víctor Fajardo","San Marcos",null,"Paruro",null,"Puerto Inca",null,null,"Santiago de Chuco ",null,"Yauyos ",null,null,null,null,null,"San Antonio de Putina ","Tocache "]
[null,null,"Huarmey",null,null,"Vilcas Huamán","San Miguel",null,"Paucartambo",null,"Yarowilca ",null,null,"Trujillo ",null,null,null,null,null,null,null,"San Román "]
[null,null,"Huaylas",null,null,null,"San Pablo",null,"Quispicanchi",null,null,null,null,"Virú ",null,null,null,null,null,null,null,"Sandia "]
[null,null,"Mariscal Luzuriaga",null,null,null,"Santa Cruz",null,"Urubamba",null,null,null,null,null,null,null,null,null,null,null,null,"Yunguyo "]
[null,null,"Ocros"]
[null,null,"Pallasca"]
[null,null,"Pomabamba"]
[null,null,"Recuay"]
[null,null,"Santa"]
[null,null,"Sihuas"]
[null,null,"Yungay"]

{"sheet":"PROVI_DISTR","index":8,"n_rows":46,"n_cols":197,"rows_kept":46,"cut":false,"hidden":true,"merged":[]}
[]
[]
[null,"Abancay","Acobamba","Acomayo","Aija","Alto_Amazonas ","Ambo","Andahuaylas","Angaraes","Anta","Antabamba","Antonio_Raymondi","Arequipa_","Ascope ","Asunción","Atalaya ","Ayabaca ","Aymaraes","Azángaro ","Bagua","Barranca ","Bellavista ","Bolívar ","Bolognesi","Bongará","Cajabamba","Cajamarca_","Cajatambo ","Calca","Camaná","Canas","Canchis","Candarave ","Cangallo","Canta ","Cañete ","Carabaya ","Caravelí","Carhuaz","Carlos_Fermín_Fitzcarrald","Casma","Castilla","Castrovirreyna","Caylloma","Celendín","Chachapoyas","Chanchamayo ","Chepén ","Chiclayo ","Chincha ","Chincheros","Chota","Chucuito ","Chumbivilcas","Chupaca ","Churcampa","Concepción ","Condesuyos","Condorcanqui","Contralmirante Villar ","Contumazá","Coronel_Portillo ","Corongo","Cotabambas","Cusco_","Cutervo","Daniel Alcides Carrión ","Datem del Marañón ","Dos de Mayo","El Collao ","El Dorado ","Espinar","Ferreñafe ","General Sánchez Cerro ","Gran Chimú ","Grau","Huacaybamba","Hualgayoc","Huallaga ","Huamalíes","Huamanga","Huanca Sancos","Huancabamba ","Huancané ","Huancavelica_","Huancayo ","Huanta","Huánuco_","Huaral ","Huaraz","Huari","Huarmey","Huarochirí ","Huaura ","Huaylas","Huaytará","Ica_","Ilo_","Islay","Jaén","Jauja ","Jorge Basadre ","Julcán ","Junín_","La Convención","La Mar","La Uniòn","Lamas ","Lambayeque_","Lampa ","Lauricocha ","Leoncio Prado","Lima_","Loreto_","Lucanas","Luya","Manu ","Marañón","Mariscal Cáceres ","Mariscal Luzuriaga","Mariscal Nieto ","Mariscal Ramón Castilla ","Maynas ","Melgar ","Moho ","Morropón ","Moyobamba ","Nazca ","Ocros","Otuzco ","Oxapampa ","Oyón ","Pacasmayo ","Pachitea","Padre Abad ","Paita ","Pallasca","Palpa ","Parinacochas","Paruro","Pasco_","Pataz ","Paucar del Sara Sara","Paucartambo","Picota ","Pisco ","Piura_","Pomabamba","Callao","Puerto Inca","Puno_","Purús","Putumayo","Quispicanchi","Recuay","Requena ","Rioja ","Rodríguez de Mendoza","San Antonio de Putina ","San Ignacio","San Marcos","San Martín_","San Miguel","San Pablo","San Román ","Sánchez Carrión ","Sandia ","Santa","Santa Cruz","Santiago de Chuco ","Satipo ","Sechura ","Sihuas","Sucre","Sullana ","Tacna_","Tahuamanu ","Talara ","Tambopata ","Tarata ","Tarma ","Tayacaja","Tocache ","Trujillo ","Tumbes_","_Ucayali","Urubamba","Utcubamba","Víctor Fajardo","Vilcas Huamán","Virú ","Yarowilca ","Yauli ","Yauyos ","Yungay","Yunguyo ","Zarumilla "]
[null,"_Abancay","_Acobamba","_Acomayo","_Aija","Balsapuerto","_Ambo","_Andahuaylas","Anchonga","Ancahuasi","_Antabamba","Aczo","Alto Selva Alegre","_Ascope","Acochaca","Raymondi","_Ayabaca","Capaya","Achaya","Aramango","_Barranca","Alto Biavo","Bambamarca","Abelardo Pardo Lezameta","Chisquilla","Cachachi","Asunción","_Cajatambo","_Calca","_Camaná","Checca","Checacupe","Cairani","_Cangallo","Arahuay","Asia","Ajoyani","Acarí","Acopampa","San Luis","Buena Vista Alta","Andagua","Arma","Achoma","Celendin","Asunción","_Chanchamayo","_Chepen","Cayalti","Alto Laran","Anco Huallo","Anguia","Desaguadero","Capacmarca","Ahuac","Anco","Aco","Andaray","El Cenepa","Canoas de Punta Sal","Chilete","Calleria","Aco","Challhuahuacho","Ccorca","Callayuc","Chacayan","Andoas","Chuquis","Capazo","Agua Blanca","Alto Pichigua","Cañaris","Chojata","Cascas","Chuquibambilla","Canchabamba","Bambamarca","Alto Saposoa","Arancay","Acocro","Carapo","Canchaque","Cojata","Acobambilla","Carhuacallanga","Ayahuanco","Amarilis","Atavillos Alto","Cochabamba","Anra","Cochapeti","Antioquia","Ambar","Caraz","Ayavi","Ica","El Algarrobal","Cocachacra","Bellavista","Acolla","Ilabaya","Calamarca","Carhuamayo","Echarate","Anchihuay","Alca","Alonso de Alvarado","Chochope","Cabanilla","Baños","Daniel Alomía Robles","Ancón","Nauta","Aucara","Camporredondo","Fitzcarrald","Cholon","Campanilla","Casca","Carumas","Pebas","Alto Nanay","Antauta","Conima","Buenos Aires","Calzada","Changuillo","Acas","Agallpampa","Chontabamba","Andajes","Guadalupe","Chaglla","Alexander Von Humboldt","Amotape","Bolognesi","Llipata","Chumpi","Accha","Chaupimarca","Buldibuyo","Colta","Caicay","Buenos Aires","Huancano","Atacaos","Huayllan","Bellavista","Codo del Pozuzo","Acora","_Purus","_Putumayo","Andahuaylillas","Catac","Alto Tapiche","Awajun","Chirimoto","Ananea","Chirinos","Chancay","Alberto Leveau","Bolívar","San Bernardino","Cabana","Chugay","Alto Inambari","Cáceres del Perú","Andabamba_","Angasmarca","Coviriali","Bellavista de la Unión","Acobamba","Belén","Bellavista","Alto de la Alianza","Iberia","El Alto","Inambari","Estique","Acobamba","Acostambo","Nuevo Progreso","El Porvenir","Corrales","Contamana","Chinchero","Bagua Grande","Alcamenca","Accomarca","Chao","Aparicio Pomares","Chacapalpa","Alis","Yanama","Anapia","Aguas Verdes"]
[null,"Chacoche","Andabamba","Acopia","Coris","Jeberos","Cayna","Andarapa","Callanmarca","_Anta","El Oro","Chaccho","_Arequipa","Casa Grande","Chacas","Sepahua","Frias","Caraybamba","Arapa","_Bagua","Paramonga","Bajo Biavo","_Bolívar","Antonio Raymondi","Churuja","_Cajabamba","Cajamarca","Copa","Coya","José María Quimper","Kunturkanki","Combapata","Camilaca","Chuschi","_Canta","Calango","Ayapata","Atico","Amashca","San Nicolás","_Casma","Aplao","Aurahua","Cabanaconde","Chumuch","Balsas","Perene","Pacanga","_Chiclayo","Chavin","_Chincheros","Chadin","Huacullani","Chamaca","Chongos Bajo","Chinchihuasi","Andamarca","Cayarani","Nieva","Casitas","Contumaza","Campoverde","Bambas","_Cotabambas","Cusco","Choros","Goyllarisquizga","Barranca","La Unión","Conduriri","San José de Sisa","Condoroma","_Ferreñafe","Coalaque","Lucma","Curasco","Cochabamba","Chugur","El Eslabón","Chavín de Pariarca","Acos Vinchos","Sacsamarca","El Carmen de la Frontera","Huancane","Acoria","Chacapampa","Canayre","Chinchao","Atavillos Bajo","Colcabamba","Cajay","Culebras","Callahuanca","Caleta de Carquin","Huallanca","Córdova","La Tinguiña","Ilo","Dean Valdivia","Chontali","Apata","Ite","Carabamba","Junin","Huayopata","Anco","Charcana","Barranquita","Illimo","Calapuja","Jesús","Hermílio Valdizan","Ate","Parinari","Cabana","Cocabamba","Huepetuhe","Huacrachuco","Huicungo","Eleazar Guzmán Barron","Cuchumbaya","Ramón Castilla","Belén","Ayaviri","Huayrapata","Chalaco","Habana","El Ingenio","Cajamarquilla","Charat","Constitución","Caujul","Jequetepeque","Molino","Curimana","Arenal","Cabana","_Palpa","Coracora","Ccapi","Huachon","Chillia","Corculla","Challabamba","Caspisapa","Humay","Castilla","Parobamba","Callao","Honoria","Amantani",null,"Rosa Panduro","Camanti","Cotaparaco","Capelo","Elías Soplin Vargas","Cochamal","Pedro Vilca Apaza","Huarango","Eduardo Villanueva","Cacatachi","Calquis","San Luis","Cabanillas","Cochorco","Cuyocuyo","Chimbote","Catache","Cachicadan","Llaylla","Bernal","Alfonso Ugarte","Chalcos","Ignacio Escudero","Calana","Iñapari","La Brea","Laberinto","Estique-Pampa","Huaricolca","Acraquia","Polvora","Florencia de Mora","La Cruz","Inahuaya","Huayllabamba","Cajaruro","Apongo","Carhuanca","Guadalupito","Cahuac","Huay-Huay","Allauca","Cascapara","Copani","Matapalo"]
[null,"Circa","Anta","Acos","Huacllan","Lagunas","Colpas","Chiara","Ccochaccasa","Cachimayo","Huaquirca","Chingas","Cayma","Chicama",null,"Tahuania","Jilili","Chalhuanca","Asillo","Copallin","Pativilca","_Bellavista","Condormarca","Aquia","Corosha","Condebamba","Chetilla","Gorgor","Lamay","Mariano Nicolás Valcárcel","Langui","Marangani","_Candarave","Los Morochucos","Huamantanga","Cerro Azul","Coasa","Atiquipa","Anta","Yauya","Comandante Noel","Ayo","Capillas","Callalli","Cortegana","_Chachapoyas","Pichanaqui","Pueblo Nuevo","Chongoyape","Chincha Alta","Cocharcas","Chalamarca","Juli","Colquemarca","_Chupaca","_Churcampa","Chambara","Chichas","Río Santiago","Zorritos","Cupisnique","Iparia","_Corongo","Coyllurqui","Poroy","Cujillo","Paucar","Cahuapanas","Marías","Ilave","San Martín","Coporaque","Incahuasi","Ichuña","Marmot","Curpahuasi","_Huacaybamba","_Hualgayoc","Piscoyacu","Jacas Grande","Andrés Avelino Cáceres Dorregaray","Sancos","_Huancabamba","Huatasani","Ascensión","Chicche","Huamanguilla","Churubamba","Aucallama","Huanchay","Chavin de Huantar","_Huarmey","Carampoma","Checras","Huata","Huayacundo Arma","Los Aquijes","Pacocha","_Islay","Colasay","Ataura","Locumba","Huaso","Ondores","Inkawasi","Ayna","Cotahuasi","Caynarachi","Jayanca","_Lampa","Jivia","José Crespo y Castillo","Barranco","Tigre","Carmen Salcedo","Colcamar","Madre de Dios","San Buenaventura","Juanjuí","Fidel Olivas Escudero","Moquegua","San Pablo","Fernando Lores","Cupi","_Moho","Chulucanas","Jepelacio","Marcona","Carhuapampa","Huaranchal","Huancabamba","Cochamarca","_Pacasmayo","Panao","Irazola","Colan","Conchucos","Río Grande","Coronel Castañeda","Colcha","Huariaca","Huancaspata","Lampa","Colquepata","Picota","Independencia","Cura Mori","_Pomabamba","Carmen de la Legua Reynoso","_Puerto Inca","Atuncolla",null,"Teniente Manuel Clavero","Ccarhuayo","Huayllapampa","Emilio San Martín","Nueva Cajamarca","Huambo","Putina","La Coipa","Gregorio Pita","Chazuta","Catilluc","_San Pablo","Caracoto","Curgos","Limbani","Coishco","Chancaybaños","Mollebamba","Mazamari","Cristo Nos Valga","Cashapampa","Chilcayoc","Lancones","Ciudad Nueva","_Tahuamanu","Lobitos","Las Piedras","Héroes Albarracín","Huasahuasi","Ahuaycha","Shunte","Huanchaco","Pampas de Hospital","Padre Márquez","Machupicchu","Cumba","Asquipata","Concepción","_Viru","Chacabamba","La Oroya","Ayaviri","Mancos","Cuturapi","Papayal"]
[null,"Curahuasi","Caja","Mosoc Llacta","La Merced","Santa Cruz","Conchamarca","Huancarama","Chincho","Chinchaypujio","Juan Espinoza Medrano","Llamellin","Cerro Colorado","Chocope",null,"Yurua","Lagunas","Chapimarca","Azangaro","El Parco","Supe","Huallaga","Longotea","Cajacay","Cuispes","Sitacocha","Cospan","Huancapon","Lares","Mariscal Cáceres","Layo","Pitumarca","Curibaya","María Parado de Bellido","Huaros","Chilca","Corani","Bella Unión","Ataquero",null,"Yautan","Chachas","_Castrovirreyna","_Caylloma","Huasmin","Cheto","San Luis de Shuaro",null,"Eten","Chincha Baja","Huaccana","Chiguirip","Kelluyo","Livitaca","Huachac","Cosme","Cochas","Chuquibamba",null,null,"Guzmango","Manantay","Cusca","Haquira","San Jerónimo","_Cutervo","San Pedro de Pillao","Manseriche","Pachas","Pilcuyo","Santa Rosa","_Espinar","Manuel Antonio Mesones Muro","La Capilla","Sayapullo","Gamarra","Pinra",null,"Sacanche","Jircan","Ayacucho","Santiago de Lucanamarca","Huarmaca","Inchupalla","Conayca","Chilca","_Huanta","Huanuco","Chancay","_Huaraz","Huacachi","Huayan","Chicla","Huacho","_Huaylas","_Huaytara","Ocucaje",null,"Mejia","Huabal","Canchayllo",null,"Julcan","Ulcumayo","Kimbiri","Chilcas","Huaynacotas","Cuñumbuqui","_Lambayeque","Nicasio","Queropalca","Luyando","Breña","Trompeteros","Chaviña","Conila","_Manu",null,"Pachiza","Llama","Samegua","Yavari","Indiana","Llalli","Tilali","La Matanza","_Moyobamba","Nasca","Cochas","La Cuesta","_Oxapampa","Navan","San José","Umari","Neshuya","La Huaca","Huacaschuque","Santa Cruz","Pacapausa","Huanoquite","Huayllay","Huaylillas","Marcabamba","Huancarani","Pilluana","Paracas","El Tallan","Quinuabamba","La Perla","Tournavista","Capachica",null,"Yaguas","Ccatca","Llacllin","Jenaro Herrera","Pardo Miguel","Limabamba","Quilcapuncu","Namballe","Ichocan","Chipurana","El Prado","Tumbaden","Juliaca","Huamachuco","Patambuco","Macate","La Esperanza","Mollepata","Pampa Hermosa","Rinconada Llicuar","Chingalpo","Huacaña","Marcavelica","Coronel Gregorio Albarracín Lanchipa",null,"Los Organos","_Tambopata","Sitajara","La Unión","Andaymarca","_Tocache","La Esperanza","San Jacinto","Pampa Hermosa","Maras","El Milagro","Canaria","Huambalpa",null,"Chavinillo","Marcapomacocha","Azángaro","Matacoto","Ollaraya","_Zarumilla"]
[null,"Huanipaca","Marcas","Pomacanchi","Succha","Teniente Cesar López Rojas","Huacar","Huancaray","Congalla","Huarocondo","Oropesa","Mirgas","Characato","Magdalena de Cao",null,null,"Montero","Colcabamba","Caminaca","Imaza","Supe Puerto","San Pablo","Uchumarca","Canis","Florida",null,"Encañada","Manas","Pisac","Nicolás de Pierola","Pampamarca","San Pablo","Huanuara","Paras","Lachaqui","Coayllo","Crucero","Cahuacho","Carhuaz",null,null,"Chilcaymarca","Chupamarca","Chivay","Jorge Chávez","Chiliquin","San Ramón",null,"Eten Puerto","El Carmen","Ocobamba","Chimban","Pisacoma","Llusco","Huamancaca Chico","El Carmen","Comas","Iray",null,null,"San Benito","Masisea","La Pampa","Mara","San Sebastian","La Ramada","Santa Ana de Tusi","Morona","Quivilla","Santa Rosa","Shatoja","Ocoruro","Pitipo","Lloque",null,"Huayllati",null,null,"Saposoa","Llata","Carmen Alto",null,"Lalaquiz","Pusi","Cuenca","Chongos Alto","Iguain","Margos","_Huaral","Independencia","Huacchis","Malvas","Cuenca","Hualmay","Mato","Laramarca","Pachacutec",null,"Mollendo","_Jaén","Curicaca",null,null,null,"Maranura","Chungui","Pampamarca","_Lamas","Mochumi","Ocuviri","Rondos","Mariano Damaso Beraun","Carabayllo","Urarinas","Chipao","Inguilpata",null,null,"Pajarillo","Llumpa","San Cristóbal",null,"Iquitos","Macari",null,"_Morropon","Soritor","Vista Alegre","Congas","Mache","Palcazu","_Oyon","San Pedro de Lloc",null,"Padre Abad","_Paita","Huandoval","Tibillo","Pullo","Omacha","Ninacaca","Huayo","Oyolo","Kosñipata","Pucacaca","_Pisco","La Arena",null,"La Punta","Yuyapichis","Chucuito",null,null,"Cusipata","Marca","Maquia","Posic","Longar","Sina","_San Ignacio","José Manuel Quiroz","El Porvenir","La Florida",null,null,"Marcabal","Phara","Moro","Ninabamba","Quiruvilca","Pangoa","_Sechura","Huayllabamba","Morcolla","Miguel Checa","Inclan",null,"Mancora",null,"Susapaya","Palca","Colcabamba","Uchiza","Laredo","San Juan de la Virgen","Sarayacu","Ollantaytambo","Jamalca","Cayara","Independencia",null,"Choras","Morococha","Cacra","Quillo","Tinicachi"]
[null,"Lambrama","Paucara","Rondocan","La Merced","Yurimaguas","San Francisco","Huayana","Huanca-Huanca","Limatambo","Pachaconas","San Juan de Rontoy","Chiguata","Paijan",null,null,"Pacaipampa","Cotaruse","Chupa","La Peca",null,"San Rafael","Ucuncha","Chiquian","Jazan",null,"Jesús",null,"San Salvador","Ocoña","Quehue","San Pedro","Quilahuani","Totos","San Buenaventura","Imperial","Ituata","_Caravelí","Marcara",null,null,"Choco","Cocas","Coporaque","José Gálvez","Chuquibamba","Vitoc",null,"José Leonardo Ortiz","Grocio Prado","Ongoy","Choropampa","Pomata","Quiñota","San Juan de Iscos","La Merced","_Concepción","Río Grande",null,null,"Santa Cruz de Toledo","Nueva Requena","Yanac","Tambobamba","Santiago","Pimpingos","Tapuc","Pastaza","Ripan",null,null,"Pallpata","Pueblo Nuevo","Matalaque",null,"Mamara",null,null,"Tingo de Saposoa","Miraflores","Chiara",null,"San Miguel de El Faique","Rosaspata","Huachocolpa","Chupuro","Llochegua","Pillco Marca","Ihuari","Jangas","Huachis",null,"Huachupampa","_Huaura","Pamparomas","Ocoyo","Parcona",null,"Punta de Bombón","Las Pirias","El Mantaro",null,null,null,"Ocobamba","Luis Carranza","Puyca","Pinto Recodo","Morrope","Palca","San Francisco de Asís","Rupa-Rupa","Chaclacayo",null,"Huac-Huas","Lamud",null,null,null,"Lucma","Torata",null,"Las Amazonas","Nuñoa",null,"Salitral","Yantalo",null,"Llipa","_Otuzco","Pozuzo","Pachangara",null,null,null,"Tamarindo","Lacabamba",null,"Puyusca","Paccaritambo","Pallanchacra","Ongon","Pararca","_Paucartambo","San Cristóbal","San Andrés","La Unión",null,"Mi Perú",null,"Coata",null,null,"Huaro","Pampas Chico","Puinahua","_Rioja","Mariscal Benavides",null,"San José de Lourdes","José Sabogal","Huimbayoc","Llapa",null,null,"Sanagoran","Quiaca","Nepeña","Pulan","Santa Cruz de Chuca","Río Negro","Vice","Quiches","Paico","Querecotillo","Pachia",null,"Pariñas",null,"_Tarata","Palcamayo","Daniel Hernández",null,"Moche","_Tumbes","Vargas Guerra","_Urubamba","Lonya Grande","Colca","Saurama",null,"Jacas Chico","Paccha","Carania","Ranrahirca","Unicachi"]
[null,"Pichirhua","Pomacocha","Sangarara",null,null,"San Rafael","José María Arguedas","Huayllay Grande","Mollepata","Sabaino",null,"Jacobo Hunter","Rázuri",null,null,"Paimas","Huayllo","José Domingo Choquehuanca",null,null,null,null,"Colquioc","Jumbilla",null,"Llacanora",null,"Taray","Quilca","Tupac Amaru","Sicuani",null,null,"Santa Rosa de Quives","Lunahuana","Macusani","Chala","Pariahuanca",null,null,"Huancarqui","Huachos","Huambo","La Libertad de Pallan","Granada",null,null,"La Victoria","Pueblo Nuevo","Ranracancha","_Chota","Zepita","Santo Tomas","San Juan de Jarpa","Locroja","Heroínas Toledo","Salamanca",null,null,"Tantarica","Yarinacocha","Yupan",null,"Saylla","Querocotillo","Vilcabamba",null,"Shunqui",null,null,"Pichigua",null,"Omate",null,"Micaela Bastidas",null,null,null,"Monzón","Jesús Nazareno",null,"Sondor","Taraco","_Huancavelica","Colca","Luricocha","Quisqui (Kichki)","Lampian","La Libertad","Huantar",null,"Huanza","Leoncio Prado","Pueblo Libre","Pilpichaca","Pueblo Nuevo",null,null,"Pomahuaca","Huamali",null,null,null,"Pichari","Samugari","Quechualla","Rumisapa","Motupe","Paratia","San Miguel de Cauri",null,"Chorrillos",null,"Laramate","Longuita",null,null,null,"Musga",null,null,"Mazan","Orurillo",null,"San Juan de Bigote",null,null,"_Ocros","Paranday","Puerto Bermúdez",null,null,null,null,"Vichayal","Llapo",null,"San Francisco de Ravacayco","_Paruro","Paucartambo","Parcoy","Pausa",null,"San Hilarión","San Clemente","Las Lomas",null,"Ventanilla",null,"Huata",null,null,"Lucre","Pararin","_Requena","San Fernando","Milpuc",null,"Tabaconas","Pedro Gálvez","Juan Guerra","Nanchoc",null,null,"Sarin","San Juan del Oro","Nuevo Chimbote","_Santa Cruz","_Santiago de Chuco","Río Tambo",null,"Ragash","Querobamba","Salitral","Palca",null,null,null,"Tarucachi","San Pedro de Cajas","Huachocolpa",null,"Poroto",null,null,"Yucay","Yamon","Huamanquiquia","_Vilcas Huamán",null,"Obas","Santa Bárbara de Carhuacayan","Catahuasi","Shupluy","_Yunguyo"]
[null,"San Pedro de Cachora","Rosario",null,null,null,"Tomay Kichwa","Kaquiabamba","Julcamarca","Pucyura",null,null,"José Luis Bustamante Y Rivero","Santiago de Cao",null,null,"Sapillica","Justo Apu Sahuaraura","Muñani",null,null,null,null,"Huallanca","Recta",null,"Los Baños del Inca",null,"Yanatile","Samuel Pastor","Yanaoca","Tinta",null,null,null,"Mala","Ollachea","Chaparra","San Miguel de Aco",null,null,"Machaguay","Huamatambo","Huanca","Miguel Iglesias","Huancas",null,null,"Lagunas","San Juan de Yanac","Uranmarca","Cochabamba",null,"Velille","Tres de Diciembre","Pachamarca","Manzanares","Yanaquihua",null,null,"Yonan",null,null,null,"Wanchaq","San Andrés de Cutervo","Yanahuanca",null,"Sillapata",null,null,"Suyckutambo",null,"Puquina",null,"Pataypampa",null,null,null,"Punchao","Ocros",null,"Sondorillo","Vilque Chico","Huando","Cullhuas","Pucacolpa","San Francisco de Cayran","Pacaraos","Olleros","_Huari",null,"_Huarochiri","Paccho","Santa Cruz","Querco","Salas",null,null,"Pucara","Huaripampa",null,null,null,"Quellouno","San Miguel","Sayla","San Roque de Cumbaza","Olmos","Pucara",null,null,"Cieneguilla",null,"Leoncio Prado","Lonya Chico",null,null,null,"Piscobamba",null,null,"Napo","Santa Rosa",null,"Santa Catalina de Mossa",null,null,"San Cristóbal de Rajan","Salpo","Villa Rica",null,null,null,null,null,"_Pallasca",null,"Upahuacho","Pillpinto","San Francisco de Asís de Yarusyacan","_Pataz","San Javier de Alpabamba",null,"Shamboyacu","Tupac Amaru Inca","_Piura",null,null,null,"Mañazo",null,null,"Marcapata","_Recuay","Saquena","Yorongos","Omia",null,null,null,"La Banda de Shilcayo","Niepos",null,null,"Sartimbamba","San Pedro de Putina Punco","Samanco","Saucepampa","Sitabamba","_Satipo",null,"San Juan","San Pedro de Larcay","_Sullana","Pocollay",null,null,null,"Ticaco","Tapo","Huaribamba",null,"Salaverry",null,null,null,null,"Huancapi","Vischongo",null,"Pampamarca","Santa Rosa de Sacco","Chocos","_Yungay"]
[null,"Tamburco",null,null,null,null,null,"Kishuara","Lircay","Zurite",null,null,"La Joya",null,null,null,"Sicchez","Lucre","Potoni",null,null,null,null,"Huasta","San Carlos",null,"Magdalena",null,null,null,null,null,null,null,null,"Nuevo Imperial","San Gaban","Huanuhuanu","Shilla",null,null,"Orcopampa","Mollepampa","Ichupampa","Oxamarca","La Jalca",null,null,"Monsefu","San Pedro de Huacarpana",null,"Conchan",null,null,"Yanacancha","Paucarbamba","Mariscal Castilla",null,null,null,null,null,null,null,null,"San Juan de Cutervo",null,null,"Yanas",null,null,null,null,"Quinistaquillas",null,"Progreso",null,null,null,"Puños","Pacaycasa",null,null,null,"Huayllahuara","El Tambo","Santillana","San Pedro de Chaulan","San Miguel de Acos","Pampas Grande","Masin",null,"Lahuaytambo","Santa Leonor","Santo Toribio","Quito-Arma","San José de Los Molinos",null,null,"Sallique","Huertas",null,null,null,"Santa Ana","Santa Rosa","Tauria","Shanao","Pacora","Santa Lucia",null,null,"Comas",null,"Llauta","_Luya",null,null,null,null,null,null,"Punchana","Umachiri",null,"Santo Domingo",null,null,"San Pedro","Sinsicap",null,null,null,null,null,null,"Pampas",null,null,"Yaurisque","Simon Bolívar","Pias","San José de Ushua",null,"Tingo de Ponasa",null,"Tambo Grande",null,null,null,"Paucarcolla",null,null,"Ocongate","Tapacocha","Soplin","Yuracyacu","San Nicolás",null,null,null,"Morales","San Gregorio",null,null,null,"_Sandia","_Santa","Sexi",null,"Vizcatan del Ene",null,"Sicsibamba","San Salvador de Quije",null,"Sama",null,null,null,null,"_Tarma","Ñahuimpuquio",null,"Simbal",null,null,null,null,"Huancaraylla",null,null,null,"Suitucancha","Cochas"]
[null,null,null,null,null,null,null,"Pacobamba","San Antonio de Antaparco",null,null,null,"Mariano Melgar",null,null,null,"Suyo","Pocohuanca","Saman",null,null,null,null,"Huayllacayan","Shipasbamba",null,"Matara",null,null,null,null,null,null,null,null,"Pacaran","Usicayos","Jaqui","Tinco",null,null,"Pampacolca","San Juan","Lari","Sorochuco","Leimebamba",null,null,"Nueva Arica","Sunampe",null,"Huambos",null,null,null,"San Miguel de Mayocc","Matahuasi",null,null,null,null,null,null,null,null,"San Luis de Lucma",null,null,null,null,null,null,null,"Ubinas",null,"San Antonio",null,null,null,"Singa","Quinua",null,null,null,"Izcuchaca","Huacrapuquio","Sivia","Santa María del Valle","Santa Cruz de Andamarca","Pariacoto","Paucas",null,"Langa","Santa María","Yuracmarca","San Antonio de Cusicancha","San Juan Bautista",null,null,"San Felipe","Janjaillo",null,null,null,"Santa Teresa","Tambo","Tomepampa","Tabalosos","Salas","Vilavila",null,null,"El Agustino",null,"_Lucanas","Luya Viejo",null,null,null,null,null,null,"San Juan Bautista",null,null,"Yamango",null,null,"Santiago de Chilcas","Usquil",null,null,null,null,null,null,"Santa Rosa",null,null,null,"Ticlacayan","Santiago de Challas","Sara Sara",null,"Tres Unidos",null,"Veintiseis de Octubre",null,null,null,"Pichacani",null,null,"Oropesa","Ticapampa","Tapiche",null,"Santa Rosa",null,null,null,"Papaplaya","_San Miguel",null,null,null,"Yanahuaya",null,"Uticyacu",null,null,null,"_Sihuas","Santiago de Paucaray",null,"_Tacna",null,null,null,null,null,"Pampas",null,"_Trujillo",null,null,null,null,"Huaya",null,null,null,"_Yauli","Colonia"]
[null,null,null,null,null,null,null,"Pacucha","Santo Tomas de Pata",null,null,null,"Miraflores",null,null,null,null,"San Juan de Chacña","San Anton",null,null,null,null,"La Primavera","Valera",null,"Namora",null,null,null,null,null,null,null,null,"Quilmana",null,"Lomas","Yungar",null,null,"Tipan","Santa Ana","Lluta","Sucre","Levanto",null,null,"Oyotun","Tambo de Mora",null,"Lajas",null,null,null,"San Pedro de Coris","Mito",null,null,null,null,null,null,null,null,"Santa Cruz",null,null,null,null,null,null,null,"Yunga",null,"Santa Rosa",null,null,null,"Tantamayo","San José de Ticllas",null,null,null,"Laria","Hualhuas","Uchuraccay","Yacus","Sumbilca","Pira","Ponto",null,"Laraos","Sayan",null,"San Francisco de Sangayaico","Santiago",null,null,"San José del Alto","_Jauja",null,null,null,"Vilcabamba",null,"Toro","Zapatero","San José",null,null,null,"Independencia",null,"Ocaña","María",null,null,null,null,null,null,"Torres Causana",null,null,null,null,null,null,null,null,null,null,null,null,null,"Tauca",null,null,null,"Tinyahuarco","Taurija",null,null,null,null,null,null,null,null,"Plateria",null,null,"Quiquijana",null,"Yaquerana",null,"Totora",null,null,null,"San Antonio","San Silvestre de Cochan",null,null,null,null,null,"Yauyucan",null,null,null,null,"Soras",null,null,null,null,null,null,null,"Pazos",null,"Victor Larco Herrera",null,null,null,null,"Sarhua",null,null,null,null,"Hongos"]
[null,null,null,null,null,null,null,"Pampachiri","Secclla",null,null,null,"Mollebaya",null,null,null,null,"Sañayca","San José",null,null,null,null,"Mangas","Yambrasbamba",null,"San Juan",null,null,null,null,null,null,null,null,"San Antonio",null,"Quicacha",null,null,null,"Uñon","Tantara","Maca","Utco","Magdalena",null,null,"Patapo",null,null,"Llama",null,null,null,null,"Nueve de Julio",null,null,null,null,null,null,null,null,"Santo Domingo de la Capilla",null,null,null,null,null,null,null,null,null,"Turpay",null,null,null,null,"San Juan Bautista",null,null,null,"Manta","Huancan",null,"Yarumayo","Veintisiete de Noviembre","Tarica","Rahuapampa",null,"Mariatana","Vegueta",null,"San Isidro","Subtanjalla",null,null,"Santa Rosa","Julcán",null,null,null,"Villa Kintiarina",null,null,null,"Tucume",null,null,null,"Jesús María",null,"Otoca","Ocalli",null,null,null,null,null,null,null,null,null,null,null,null,null,null,null,null,null,null,null,null,null,null,null,null,"Vicco","Tayabamba",null,null,null,null,null,null,null,null,"_Puno",null,null,"Urcos",null,null,null,"Vista Alegre",null,null,null,"Sauce","Tongod",null,null,null,null,null,null,null,null,null,null,null,null,null,null,null,null,null,null,"Quichuas",null,null,null,null,null,null,"Vilcanchos",null,null,null,null,"Huampara"]
[null,null,null,null,null,null,null,"Pomacocha",null,null,null,null,"Paucarpata",null,null,null,null,"Soraya","San Juan de Salinas",null,null,null,null,"Pacllon",null,null,null,null,null,null,null,null,null,null,null,"San Luis",null,"Yauca",null,null,null,"Uraca","Ticrapo","Madrigal",null,"Mariscal Castilla",null,null,"Picsi",null,null,"Miracosta",null,null,null,null,"Orcotuna",null,null,null,null,null,null,null,null,"Santo Tomas",null,null,null,null,null,null,null,null,null,"Vilcabamba",null,null,null,null,"Santiago de Pischa",null,null,null,"Mariscal Cáceres","_Huancayo",null,null,null,null,"Rapayan",null,"Matucana",null,null,"Santiago de Chocorvos","Tate",null,null,null,"Leonor Ordóñez",null,null,null,"Villa Virgen",null,null,null,null,null,null,null,"La Molina",null,"Puquio","Ocumal",null,null,null,null,null,null,null,null,null,null,null,null,null,null,null,null,null,null,null,null,null,null,null,null,"Yanacancha","Urpay",null,null,null,null,null,null,null,null,"San Antonio",null,null,null,null,null,null,null,null,null,null,"Shapaja","Unión Agua Blanca",null,null,null,null,null,null,null,null,null,null,null,null,null,null,null,null,null,null,"Quishuar",null,null,null,null,null,null,null,null,null,null,null,"Huancaya"]
[null,null,null,null,null,null,null,"San Antonio de Cachi",null,null,null,null,"Pocsi",null,null,null,null,"Tapairihua","Santiago de Pupuja",null,null,null,null,"San Miguel de Corpanqui",null,null,null,null,null,null,null,null,null,null,null,"San Vicente de Cañete",null,null,null,null,null,"Viraco",null,"Majes",null,"Molinopampa",null,null,"Pimentel",null,null,"Paccha",null,null,null,null,"San José de Quero",null,null,null,null,null,null,null,null,"Socota",null,null,null,null,null,null,null,null,null,"Virundo",null,null,null,null,"Socos",null,null,null,"Moya","Huasicancha",null,null,null,null,"San Marcos",null,"Ricardo Palma",null,null,"Santiago de Quirahuara","Yauca del Rosario",null,null,null,"Llocllapampa",null,null,null,null,null,null,null,null,null,null,null,"La Victoria",null,"Saisa","Pisuquia",null,null,null,null,null,null,null,null,null,null,null,null,null,null,null,null,null,null,null,null,null,null,null,null,null,null,null,null,null,null,null,null,null,null,"Tiquillaca",null,null,null,null,null,null,null,null,null,null,"Tarapoto",null,null,null,null,null,null,null,null,null,null,null,null,null,null,null,null,null,null,null,"Salcabamba",null,null,null,null,null,null,null,null,null,null,null,"Huangascar"]
[null,null,null,null,null,null,null,"San Jerónimo",null,null,null,null,"Polobaya",null,null,null,null,"Tintay","Tirapata",null,null,null,null,"Ticllos",null,null,null,null,null,null,null,null,null,null,null,"Santa Cruz de Flores",null,null,null,null,null,null,null,"San Antonio de Chuca",null,"Montevideo",null,null,"Pomalca",null,null,"Pion",null,null,null,null,"Santa Rosa de Ocopa",null,null,null,null,null,null,null,null,"Toribio Casanova",null,null,null,null,null,null,null,null,null,null,null,null,null,null,"Tambillo",null,null,null,"Nuevo Occoro","Huayucachi",null,null,null,null,"San Pedro de Chana",null,"San Andrés de Tupicocha",null,null,"Santo Domingo de Capillas",null,null,null,null,"Marco",null,null,null,null,null,null,null,null,null,null,null,"_Lima",null,"San Cristóbal","Providencia",null,null,null,null,null,null,null,null,null,null,null,null,null,null,null,null,null,null,null,null,null,null,null,null,null,null,null,null,null,null,null,null,null,null,"Vilque",null,null,null,null,null,null,null,null,null,null,null,null,null,null,null,null,null,null,null,null,null,null,null,null,null,null,null,null,null,null,"Salcahuasi",null,null,null,null,null,null,null,null,null,null,null,"Huantan"]
[null,null,null,null,null,null,null,"San Miguel de Chaccrampa",null,null,null,null,"Quequeña",null,null,null,null,"Toraya",null,null,null,null,null,null,null,null,null,null,null,null,null,null,null,null,null,"Zúñiga",null,null,null,null,null,null,null,"Sibayo",null,"Olleros",null,null,"Pucala",null,null,"Querocoto",null,null,null,null,null,null,null,null,null,null,null,null,null,null,null,null,null,null,null,null,null,null,null,null,null,null,null,null,"Vinchos",null,null,null,"Palca","Ingenio",null,null,null,null,"Uco",null,"San Antonio",null,null,"Tambo",null,null,null,null,"Masma",null,null,null,null,null,null,null,null,null,null,null,"Lince",null,"San Juan","San Cristóbal",null,null,null,null,null,null,null,null,null,null,null,null,null,null,null,null,null,null,null,null,null,null,null,null,null,null,null,null,null,null,null,null,null,null,null,null,null,null,null,null,null,null,null,null,null,null,null,null,null,null,null,null,null,null,null,null,null,null,null,null,null,null,null,null,null,"San Marcos de Rocchac",null,null,null,null,null,null,null,null,null,null,null,"Huañec"]
[null,null,null,null,null,null,null,"Santa María de Chicmo",null,null,null,null,"Sabandia",null,null,null,null,"Yanaca",null,null,null,null,null,null,null,null,null,null,null,null,null,null,null,null,null,null,null,null,null,null,null,null,null,"Tapay",null,"Quinjalca",null,null,"Reque",null,null,"San Juan de Licupis",null,null,null,null,null,null,null,null,null,null,null,null,null,null,null,null,null,null,null,null,null,null,null,null,null,null,null,null,null,null,null,null,"Pilchaca","Pariahuanca",null,null,null,null,null,null,"San Bartolomé",null,null,null,null,null,null,null,"Masma Chicche",null,null,null,null,null,null,null,null,null,null,null,"Los Olivos",null,"San Pedro","San Francisco de Yeso",null,null,null,null,null,null,null,null,null,null,null,null,null,null,null,null,null,null,null,null,null,null,null,null,null,null,null,null,null,null,null,null,null,null,null,null,null,null,null,null,null,null,null,null,null,null,null,null,null,null,null,null,null,null,null,null,null,null,null,null,null,null,null,null,null,"Surcubamba",null,null,null,null,null,null,null,null,null,null,null,"Laraos"]
[null,null,null,null,null,null,null,"Talavera",null,null,null,null,"Sachaca",null,null,null,null,null,null,null,null,null,null,null,null,null,null,null,null,null,null,null,null,null,null,null,null,null,null,null,null,null,null,"Tisco",null,"San Francisco de Daguas",null,null,"Santa Rosa",null,null,"Tacabamba",null,null,null,null,null,null,null,null,null,null,null,null,null,null,null,null,null,null,null,null,null,null,null,null,null,null,null,null,null,null,null,null,"Vilca","Pilcomayo",null,null,null,null,null,null,"San Damian",null,null,null,null,null,null,null,"Molinos",null,null,null,null,null,null,null,null,null,null,null,"Lurigancho",null,"San Pedro de Palco","San Jerónimo",null,null,null,null,null,null,null,null,null,null,null,null,null,null,null,null,null,null,null,null,null,null,null,null,null,null,null,null,null,null,null,null,null,null,null,null,null,null,null,null,null,null,null,null,null,null,null,null,null,null,null,null,null,null,null,null,null,null,null,null,null,null,null,null,null,"Tintay Puncu",null,null,null,null,null,null,null,null,null,null,null,"Lincha"]
[null,null,null,null,null,null,null,"Tumay Huaraca",null,null,null,null,"San Juan de Siguas",null,null,null,null,null,null,null,null,null,null,null,null,null,null,null,null,null,null,null,null,null,null,null,null,null,null,null,null,null,null,"Tuti",null,"San Isidro de Maino",null,null,"Saña",null,null,"Tocmoche",null,null,null,null,null,null,null,null,null,null,null,null,null,null,null,null,null,null,null,null,null,null,null,null,null,null,null,null,null,null,null,null,"Yauli","Pucara",null,null,null,null,null,null,"San Juan de Iris",null,null,null,null,null,null,null,"Monobamba",null,null,null,null,null,null,null,null,null,null,null,"Lurin",null,"Sancos","San Juan de Lopecancha",null,null,null,null,null,null,null,null,null,null,null,null,null,null,null,null,null,null,null,null,null,null,null,null,null,null,null,null,null,null,null,null,null,null,null,null,null,null,null,null,null,null,null,null,null,null,null,null,null,null,null,null,null,null,null,null,null,null,null,null,null,null,null,null,null,null,null,null,null,null,null,null,null,null,null,null,null,"Madean"]
[null,null,null,null,null,null,null,"Turpo",null,null,null,null,"San Juan de Tarucani",null,null,null,null,null,null,null,null,null,null,null,null,null,null,null,null,null,null,null,null,null,null,null,null,null,null,null,null,null,null,"Yanque",null,"Soloco",null,null,"Tuman",null,null,null,null,null,null,null,null,null,null,null,null,null,null,null,null,null,null,null,null,null,null,null,null,null,null,null,null,null,null,null,null,null,null,null,null,"Quichuay",null,null,null,null,null,null,"San Juan de Tantaranche",null,null,null,null,null,null,null,"Muqui",null,null,null,null,null,null,null,null,null,null,null,"Magdalena del Mar",null,"Santa Ana de Huaycahuacho","Santa Catalina",null,null,null,null,null,null,null,null,null,null,null,null,null,null,null,null,null,null,null,null,null,null,null,null,null,null,null,null,null,null,null,null,null,null,null,null,null,null,null,null,null,null,null,null,null,null,null,null,null,null,null,null,null,null,null,null,null,null,null,null,null,null,null,null,null,null,null,null,null,null,null,null,null,null,null,null,null,"Miraflores"]
[null,null,null,null,null,null,null,null,null,null,null,null,"Santa Isabel de Siguas",null,null,null,null,null,null,null,null,null,null,null,null,null,null,null,null,null,null,null,null,null,null,null,null,null,null,null,null,null,null,null,null,"Sonche",null,null,null,null,null,null,null,null,null,null,null,null,null,null,null,null,null,null,null,null,null,null,null,null,null,null,null,null,null,null,null,null,null,null,null,null,null,null,null,"Quilcas",null,null,null,null,null,null,"San Lorenzo de Quinti",null,null,null,null,null,null,null,"Muquiyauyo",null,null,null,null,null,null,null,null,null,null,null,"Miraflores",null,"Santa Lucia","Santo Tomas",null,null,null,null,null,null,null,null,null,null,null,null,null,null,null,null,null,null,null,null,null,null,null,null,null,null,null,null,null,null,null,null,null,null,null,null,null,null,null,null,null,null,null,null,null,null,null,null,null,null,null,null,null,null,null,null,null,null,null,null,null,null,null,null,null,null,null,null,null,null,null,null,null,null,null,null,null,"Omas"]
[null,null,null,null,null,null,null,null,null,null,null,null,"Santa Rita de Siguas",null,null,null,null,null,null,null,null,null,null,null,null,null,null,null,null,null,null,null,null,null,null,null,null,null,null,null,null,null,null,null,null,null,null,null,null,null,null,null,null,null,null,null,null,null,null,null,null,null,null,null,null,null,null,null,null,null,null,null,null,null,null,null,null,null,null,null,null,null,null,null,null,"San Agustín",null,null,null,null,null,null,"San Mateo",null,null,null,null,null,null,null,"Paca",null,null,null,null,null,null,null,null,null,null,null,"Pachacamac",null,null,"Tingo",null,null,null,null,null,null,null,null,null,null,null,null,null,null,null,null,null,null,null,null,null,null,null,null,null,null,null,null,null,null,null,null,null,null,null,null,null,null,null,null,null,null,null,null,null,null,null,null,null,null,null,null,null,null,null,null,null,null,null,null,null,null,null,null,null,null,null,null,null,null,null,null,null,null,null,null,null,"Putinza"]
[null,null,null,null,null,null,null,null,null,null,null,null,"Socabaya",null,null,null,null,null,null,null,null,null,null,null,null,null,null,null,null,null,null,null,null,null,null,null,null,null,null,null,null,null,null,null,null,null,null,null,null,null,null,null,null,null,null,null,null,null,null,null,null,null,null,null,null,null,null,null,null,null,null,null,null,null,null,null,null,null,null,null,null,null,null,null,null,"San Jerónimo de Tunan",null,null,null,null,null,null,"San Mateo de Otao",null,null,null,null,null,null,null,"Paccha",null,null,null,null,null,null,null,null,null,null,null,"Pucusana",null,null,"Trita",null,null,null,null,null,null,null,null,null,null,null,null,null,null,null,null,null,null,null,null,null,null,null,null,null,null,null,null,null,null,null,null,null,null,null,null,null,null,null,null,null,null,null,null,null,null,null,null,null,null,null,null,null,null,null,null,null,null,null,null,null,null,null,null,null,null,null,null,null,null,null,null,null,null,null,null,null,"Quinches"]
[null,null,null,null,null,null,null,null,null,null,null,null,"Tiabaya",null,null,null,null,null,null,null,null,null,null,null,null,null,null,null,null,null,null,null,null,null,null,null,null,null,null,null,null,null,null,null,null,null,null,null,null,null,null,null,null,null,null,null,null,null,null,null,null,null,null,null,null,null,null,null,null,null,null,null,null,null,null,null,null,null,null,null,null,null,null,null,null,"Santo Domingo de Acobamba",null,null,null,null,null,null,"San Pedro de Casta",null,null,null,null,null,null,null,"Pancan",null,null,null,null,null,null,null,null,null,null,null,"Pueblo Libre",null,null,null,null,null,null,null,null,null,null,null,null,null,null,null,null,null,null,null,null,null,null,null,null,null,null,null,null,null,null,null,null,null,null,null,null,null,null,null,null,null,null,null,null,null,null,null,null,null,null,null,null,null,null,null,null,null,null,null,null,null,null,null,null,null,null,null,null,null,null,null,null,null,null,null,null,null,null,null,null,"Quinocay"]
[null,null,null,null,null,null,null,null,null,null,null,null,"Uchumayo",null,null,null,null,null,null,null,null,null,null,null,null,null,null,null,null,null,null,null,null,null,null,null,null,null,null,null,null,null,null,null,null,null,null,null,null,null,null,null,null,null,null,null,null,null,null,null,null,null,null,null,null,null,null,null,null,null,null,null,null,null,null,null,null,null,null,null,null,null,null,null,null,"Saño",null,null,null,null,null,null,"San Pedro de Huancayre",null,null,null,null,null,null,null,"Parco",null,null,null,null,null,null,null,null,null,null,null,"Puente Piedra",null,null,null,null,null,null,null,null,null,null,null,null,null,null,null,null,null,null,null,null,null,null,null,null,null,null,null,null,null,null,null,null,null,null,null,null,null,null,null,null,null,null,null,null,null,null,null,null,null,null,null,null,null,null,null,null,null,null,null,null,null,null,null,null,null,null,null,null,null,null,null,null,null,null,null,null,null,null,null,null,"San Joaquín"]
[null,null,null,null,null,null,null,null,null,null,null,null,"Vitor",null,null,null,null,null,null,null,null,null,null,null,null,null,null,null,null,null,null,null,null,null,null,null,null,null,null,null,null,null,null,null,null,null,null,null,null,null,null,null,null,null,null,null,null,null,null,null,null,null,null,null,null,null,null,null,null,null,null,null,null,null,null,null,null,null,null,null,null,null,null,null,null,"Sapallanga",null,null,null,null,null,null,"Sangallaya",null,null,null,null,null,null,null,"Pomacancha",null,null,null,null,null,null,null,null,null,null,null,"Punta Hermosa",null,null,null,null,null,null,null,null,null,null,null,null,null,null,null,null,null,null,null,null,null,null,null,null,null,null,null,null,null,null,null,null,null,null,null,null,null,null,null,null,null,null,null,null,null,null,null,null,null,null,null,null,null,null,null,null,null,null,null,null,null,null,null,null,null,null,null,null,null,null,null,null,null,null,null,null,null,null,null,null,"San Pedro de Pilas"]
[null,null,null,null,null,null,null,null,null,null,null,null,"Yanahuara",null,null,null,null,null,null,null,null,null,null,null,null,null,null,null,null,null,null,null,null,null,null,null,null,null,null,null,null,null,null,null,null,null,null,null,null,null,null,null,null,null,null,null,null,null,null,null,null,null,null,null,null,null,null,null,null,null,null,null,null,null,null,null,null,null,null,null,null,null,null,null,null,"Sicaya",null,null,null,null,null,null,"Santa Cruz de Cocachacra",null,null,null,null,null,null,null,"Ricran",null,null,null,null,null,null,null,null,null,null,null,"Punta Negra",null,null,null,null,null,null,null,null,null,null,null,null,null,null,null,null,null,null,null,null,null,null,null,null,null,null,null,null,null,null,null,null,null,null,null,null,null,null,null,null,null,null,null,null,null,null,null,null,null,null,null,null,null,null,null,null,null,null,null,null,null,null,null,null,null,null,null,null,null,null,null,null,null,null,null,null,null,null,null,null,"Tanta"]
[null,null,null,null,null,null,null,null,null,null,null,null,"Yarabamba",null,null,null,null,null,null,null,null,null,null,null,null,null,null,null,null,null,null,null,null,null,null,null,null,null,null,null,null,null,null,null,null,null,null,null,null,null,null,null,null,null,null,null,null,null,null,null,null,null,null,null,null,null,null,null,null,null,null,null,null,null,null,null,null,null,null,null,null,null,null,null,null,"Viques",null,null,null,null,null,null,"Santa Eulalia",null,null,null,null,null,null,null,"San Lorenzo",null,null,null,null,null,null,null,null,null,null,null,"Rímac",null,null,null,null,null,null,null,null,null,null,null,null,null,null,null,null,null,null,null,null,null,null,null,null,null,null,null,null,null,null,null,null,null,null,null,null,null,null,null,null,null,null,null,null,null,null,null,null,null,null,null,null,null,null,null,null,null,null,null,null,null,null,null,null,null,null,null,null,null,null,null,null,null,null,null,null,null,null,null,null,"Tauripampa"]
[null,null,null,null,null,null,null,null,null,null,null,null,"Yura",null,null,null,null,null,null,null,null,null,null,null,null,null,null,null,null,null,null,null,null,null,null,null,null,null,null,null,null,null,null,null,null,null,null,null,null,null,null,null,null,null,null,null,null,null,null,null,null,null,null,null,null,null,null,null,null,null,null,null,null,null,null,null,null,null,null,null,null,null,null,null,null,null,null,null,null,null,null,null,"Santiago de Anchucaya",null,null,null,null,null,null,null,"San Pedro de Chunan",null,null,null,null,null,null,null,null,null,null,null,"San Bartolo",null,null,null,null,null,null,null,null,null,null,null,null,null,null,null,null,null,null,null,null,null,null,null,null,null,null,null,null,null,null,null,null,null,null,null,null,null,null,null,null,null,null,null,null,null,null,null,null,null,null,null,null,null,null,null,null,null,null,null,null,null,null,null,null,null,null,null,null,null,null,null,null,null,null,null,null,null,null,null,null,"Tomas"]
[null,null,null,null,null,null,null,null,null,null,null,null,null,null,null,null,null,null,null,null,null,null,null,null,null,null,null,null,null,null,null,null,null,null,null,null,null,null,null,null,null,null,null,null,null,null,null,null,null,null,null,null,null,null,null,null,null,null,null,null,null,null,null,null,null,null,null,null,null,null,null,null,null,null,null,null,null,null,null,null,null,null,null,null,null,null,null,null,null,null,null,null,"Santiago de Tuna",null,null,null,null,null,null,null,"Sausa",null,null,null,null,null,null,null,null,null,null,null,"San Borja",null,null,null,null,null,null,null,null,null,null,null,null,null,null,null,null,null,null,null,null,null,null,null,null,null,null,null,null,null,null,null,null,null,null,null,null,null,null,null,null,null,null,null,null,null,null,null,null,null,null,null,null,null,null,null,null,null,null,null,null,null,null,null,null,null,null,null,null,null,null,null,null,null,null,null,null,null,null,null,null,"Tupe"]
[null,null,null,null,null,null,null,null,null,null,null,null,null,null,null,null,null,null,null,null,null,null,null,null,null,null,null,null,null,null,null,null,null,null,null,null,null,null,null,null,null,null,null,null,null,null,null,null,null,null,null,null,null,null,null,null,null,null,null,null,null,null,null,null,null,null,null,null,null,null,null,null,null,null,null,null,null,null,null,null,null,null,null,null,null,null,null,null,null,null,null,null,"Santo Domingo de Los Olleros",null,null,null,null,null,null,null,"Sincos",null,null,null,null,null,null,null,null,null,null,null,"San Isidro",null,null,null,null,null,null,null,null,null,null,null,null,null,null,null,null,null,null,null,null,null,null,null,null,null,null,null,null,null,null,null,null,null,null,null,null,null,null,null,null,null,null,null,null,null,null,null,null,null,null,null,null,null,null,null,null,null,null,null,null,null,null,null,null,null,null,null,null,null,null,null,null,null,null,null,null,null,null,null,null,"Viñac"]
[null,null,null,null,null,null,null,null,null,null,null,null,null,null,null,null,null,null,null,null,null,null,null,null,null,null,null,null,null,null,null,null,null,null,null,null,null,null,null,null,null,null,null,null,null,null,null,null,null,null,null,null,null,null,null,null,null,null,null,null,null,null,null,null,null,null,null,null,null,null,null,null,null,null,null,null,null,null,null,null,null,null,null,null,null,null,null,null,null,null,null,null,"Surco",null,null,null,null,null,null,null,"Tunan Marca",null,null,null,null,null,null,null,null,null,null,null,"San Juan de Lurigancho",null,null,null,null,null,null,null,null,null,null,null,null,null,null,null,null,null,null,null,null,null,null,null,null,null,null,null,null,null,null,null,null,null,null,null,null,null,null,null,null,null,null,null,null,null,null,null,null,null,null,null,null,null,null,null,null,null,null,null,null,null,null,null,null,null,null,null,null,null,null,null,null,null,null,null,null,null,null,null,null,"Vitis"]
[null,null,null,null,null,null,null,null,null,null,null,null,null,null,null,null,null,null,null,null,null,null,null,null,null,null,null,null,null,null,null,null,null,null,null,null,null,null,null,null,null,null,null,null,null,null,null,null,null,null,null,null,null,null,null,null,null,null,null,null,null,null,null,null,null,null,null,null,null,null,null,null,null,null,null,null,null,null,null,null,null,null,null,null,null,null,null,null,null,null,null,null,null,null,null,null,null,null,null,null,"Yauli",null,null,null,null,null,null,null,null,null,null,null,"San Juan de Miraflores",null,null,null,null,null,null,null,null,null,null,null,null,null,null,null,null,null,null,null,null,null,null,null,null,null,null,null,null,null,null,null,null,null,null,null,null,null,null,null,null,null,null,null,null,null,null,null,null,null,null,null,null,null,null,null,null,null,null,null,null,null,null,null,null,null,null,null,null,null,null,null,null,null,null,null,null,null,null,null,null,"_Yauyos"]
[null,null,null,null,null,null,null,null,null,null,null,null,null,null,null,null,null,null,null,null,null,null,null,null,null,null,null,null,null,null,null,null,null,null,null,null,null,null,null,null,null,null,null,null,null,null,null,null,null,null,null,null,null,null,null,null,null,null,null,null,null,null,null,null,null,null,null,null,null,null,null,null,null,null,null,null,null,null,null,null,null,null,null,null,null,null,null,null,null,null,null,null,null,null,null,null,null,null,null,null,"Yauyos",null,null,null,null,null,null,null,null,null,null,null,"San Luis"]
[null,null,null,null,null,null,null,null,null,null,null,null,null,null,null,null,null,null,null,null,null,null,null,null,null,null,null,null,null,null,null,null,null,null,null,null,null,null,null,null,null,null,null,null,null,null,null,null,null,null,null,null,null,null,null,null,null,null,null,null,null,null,null,null,null,null,null,null,null,null,null,null,null,null,null,null,null,null,null,null,null,null,null,null,null,null,null,null,null,null,null,null,null,null,null,null,null,null,null,null,null,null,null,null,null,null,null,null,null,null,null,null,"San Martín de Porres"]
[null,null,null,null,null,null,null,null,null,null,null,null,null,null,null,null,null,null,null,null,null,null,null,null,null,null,null,null,null,null,null,null,null,null,null,null,null,null,null,null,null,null,null,null,null,null,null,null,null,null,null,null,null,null,null,null,null,null,null,null,null,null,null,null,null,null,null,null,null,null,null,null,null,null,null,null,null,null,null,null,null,null,null,null,null,null,null,null,null,null,null,null,null,null,null,null,null,null,null,null,null,null,null,null,null,null,null,null,null,null,null,null,"San Miguel"]
[null,null,null,null,null,null,null,null,null,null,null,null,null,null,null,null,null,null,null,null,null,null,null,null,null,null,null,null,null,null,null,null,null,null,null,null,null,null,null,null,null,null,null,null,null,null,null,null,null,null,null,null,null,null,null,null,null,null,null,null,null,null,null,null,null,null,null,null,null,null,null,null,null,null,null,null,null,null,null,null,null,null,null,null,null,null,null,null,null,null,null,null,null,null,null,null,null,null,null,null,null,null,null,null,null,null,null,null,null,null,null,null,"Santa Anita"]
[null,null,null,null,null,null,null,null,null,null,null,null,null,null,null,null,null,null,null,null,null,null,null,null,null,null,null,null,null,null,null,null,null,null,null,null,null,null,null,null,null,null,null,null,null,null,null,null,null,null,null,null,null,null,null,null,null,null,null,null,null,null,null,null,null,null,null,null,null,null,null,null,null,null,null,null,null,null,null,null,null,null,null,null,null,null,null,null,null,null,null,null,null,null,null,null,null,null,null,null,null,null,null,null,null,null,null,null,null,null,null,null,"Santa María del Mar"]
[null,null,null,null,null,null,null,null,null,null,null,null,null,null,null,null,null,null,null,null,null,null,null,null,null,null,null,null,null,null,null,null,null,null,null,null,null,null,null,null,null,null,null,null,null,null,null,null,null,null,null,null,null,null,null,null,null,null,null,null,null,null,null,null,null,null,null,null,null,null,null,null,null,null,null,null,null,null,null,null,null,null,null,null,null,null,null,null,null,null,null,null,null,null,null,null,null,null,null,null,null,null,null,null,null,null,null,null,null,null,null,null,"Santa Rosa"]
[null,null,null,null,null,null,null,null,null,null,null,null,null,null,null,null,null,null,null,null,null,null,null,null,null,null,null,null,null,null,null,null,null,null,null,null,null,null,null,null,null,null,null,null,null,null,null,null,null,null,null,null,null,null,null,null,null,null,null,null,null,null,null,null,null,null,null,null,null,null,null,null,null,null,null,null,null,null,null,null,null,null,null,null,null,null,null,null,null,null,null,null,null,null,null,null,null,null,null,null,null,null,null,null,null,null,null,null,null,null,null,null,"Santiago de Surco"]
[null,null,null,null,null,null,null,null,null,null,null,null,null,null,null,null,null,null,null,null,null,null,null,null,null,null,null,null,null,null,null,null,null,null,null,null,null,null,null,null,null,null,null,null,null,null,null,null,null,null,null,null,null,null,null,null,null,null,null,null,null,null,null,null,null,null,null,null,null,null,null,null,null,null,null,null,null,null,null,null,null,null,null,null,null,null,null,null,null,null,null,null,null,null,null,null,null,null,null,null,null,null,null,null,null,null,null,null,null,null,null,null,"Surquillo"]
[null,null,null,null,null,null,null,null,null,null,null,null,null,null,null,null,null,null,null,null,null,null,null,null,null,null,null,null,null,null,null,null,null,null,null,null,null,null,null,null,null,null,null,null,null,null,null,null,null,null,null,null,null,null,null,null,null,null,null,null,null,null,null,null,null,null,null,null,null,null,null,null,null,null,null,null,null,null,null,null,null,null,null,null,null,null,null,null,null,null,null,null,null,null,null,null,null,null,null,null,null,null,null,null,null,null,null,null,null,null,null,null,"Villa El Salvador"]
[null,null,null,null,null,null,null,null,null,null,null,null,null,null,null,null,null,null,null,null,null,null,null,null,null,null,null,null,null,null,null,null,null,null,null,null,null,null,null,null,null,null,null,null,null,null,null,null,null,null,null,null,null,null,null,null,null,null,null,null,null,null,null,null,null,null,null,null,null,null,null,null,null,null,null,null,null,null,null,null,null,null,null,null,null,null,null,null,null,null,null,null,null,null,null,null,null,null,null,null,null,null,null,null,null,null,null,null,null,null,null,null,"Villa María del Triunfo"]

{"sheet":"CONFIANZ","index":9,"n_rows":20,"n_cols":34,"rows_kept":20,"cut":false,"hidden":true,"merged":[[1,2,1,29]]}
[]
[null,null,"PREGUNTAS"]
[null,"ENCUESTADOS","P1","P2","P3","P4","P5","P6","P7","P8","P9","P10","P11","P12","P13","P14","P15","P16","P17","P18","P19","P20","P21","P22","P23","P24","P25","P26","P27","P28","SUMA"]
[null,"E1",1,3,1,2,3,1,1,1,1,1,2,2,1,3,3,3,3,1,1,2,2,2,3,3,3,1,1,2,{"$f":"SUM(C4:AD4)","v":53}]
[null,"E2",2,1,3,1,1,1,2,2,3,2,1,2,3,1,1,2,3,3,1,1,1,2,2,3,2,1,1,1,{"$f":"SUM(C5:AD5)","v":49}]
[null,"E3",1,2,3,2,1,2,3,2,1,2,3,2,1,2,3,2,2,3,3,2,1,3,2,3,2,2,2,3,60]
[null,"E4",2,1,2,3,2,1,2,3,2,1,2,3,2,3,2,3,1,2,2,3,2,2,3,2,3,2,2,2,60,null,"Datos:"]
[null,"E5",1,2,1,2,1,2,1,2,1,2,1,2,1,2,1,2,2,1,1,2,1,1,2,1,2,1,1,1,40,null,"k","El número de items"]
[null,"E6",2,1,2,2,2,1,2,2,2,1,2,2,2,2,2,2,1,2,2,2,2,2,2,2,2,1,1,1,49,null,null,"Sumatoria de varianza de items"]
[null,"E7",3,2,3,2,3,2,3,2,3,2,3,2,3,2,3,2,2,3,3,2,3,3,2,3,2,2,3,2,70,null,null,"Varianza de la suma de items"]
[null,"E8",1,3,2,1,1,3,2,1,1,3,2,1,1,1,2,1,3,2,2,1,1,2,1,2,1,2,1,1,45,null,"ꭤ","Coeficiente de alfa de cronbach"]
[null,"E9",2,1,1,1,2,1,1,1,2,1,1,1,2,1,1,1,1,1,1,1,2,1,1,1,1,1,1,2,34]
[null,"E10",3,2,1,2,3,2,1,2,3,2,1,2,3,2,1,2,2,1,1,2,3,1,2,1,2,1,2,1,51]
[null,"VARIANZA",{"$f":"VAR(C4:C13)","v":0.62222222222222234},{"$f":"VAR(D4:D13)","v":0.62222222222222234},0.7666666666666665,0.40000000000000013,0.7666666666666665,0.48888888888888871,0.62222222222222234,0.40000000000000013,0.7666666666666665,0.45555555555555571,0.62222222222222234,0.32222222222222208,0.7666666666666665,0.54444444444444429,0.7666666666666665,0.44444444444444442,0.66666666666666663,0.7666666666666665,0.67777777777777792,0.40000000000000013,0.62222222222222234,0.54444444444444429,0.44444444444444442,0.7666666666666665,0.44444444444444442,0.2666666666666665,0.5,0.48888888888888871]
[null,null,null,null,null,null,null,null,null,null,null,null,null,null,null,null,null,null,null,null,null,null,null,null,null,null,null,null,null,null,null,null,"Rangos","Magnitudes"]
[null,null,null,null,null,null,null,null,null,null,null,null,null,null,null,null,null,null,null,null,null,null,null,null,null,null,null,null,null,null,null,null,"0.81 a 1.00","Muy alta"]
[null,null,null,null,null,null,null,null,null,null,null,null,null,null,null,null,null,null,null,null,null,null,null,null,null,null,null,null,null,null,null,null,"0.61 a 0.80","Alta"]
[null,null,null,null,null,null,null,null,null,null,null,null,null,null,null,null,null,null,null,null,null,null,null,null,null,null,null,null,null,null,null,null,"0.41 a 0.60","Moderada"]
[null,null,null,null,null,null,null,null,null,null,null,null,null,null,null,null,null,null,null,null,null,null,null,null,null,null,null,null,null,null,null,null,"0.21 a 0.40","Baja"]
[null,null,null,null,null,null,null,null,null,null,null,null,null,null,null,null,null,null,null,null,null,null,null,null,null,null,null,null,null,null,null,null,"0.01 a 0.20","Muy baja"]

{"sheet":"LISTA_ACT_ECON","index":10,"n_rows":127,"n_cols":8,"rows_kept":127,"cut":false,"hidden":true,"merged":[]}
[]
[null,1010,"Elaboración y conservación de carne",null,null,null,null,"Industria de alimentos"]
[null,1030,"Elaboración y conservación de frutas, legumbres y hortalizas",null,null,null,null,"Industria de bebidas"]
[null,1040,"Elaboración de aceites y grasas de origen vegetal y animal",null,null,null,null,"Industria textil"]
[null,1050,"Elaboración de productos lácteos",null,null,null,null,"Industria de cuero y productos"]
[null,1061,"Elaboración de productos de molinería",null,null,null,null,"Producción de madera y fabricación de productos de madera y corcho, excepto muebles; fabricación de artículos de paja y de materiales trenzables\n"]
[null,1062,"Elaboración de almidones y productos derivados de almidón",null,null,null,null,"Fabricación de papel y de productos de papel; impresión y reproducción de grabaciones\n"]
[null,1071,"Elaboración de productos de panadería",null,null,null,null,"Fabricación de sustancias y producción químicos; fabricación de productos farmacéuticas, sustancias químicas medicinales y productos botánicos de uso farmacéuticos\n "]
[null,1072,"Elaboración de azúcar",null,null,null,null,"Industria de productos de caucho y de plástico\n"]
[null,1073,"Elaboración de cacao y chocolate y de productos de confitería",null,null,null,null,"Fabricación de otros productos minerales no metálicos\n"]
[null,1074,"Elaboración de macarrones, fideos, alcuzcuz y productos farináceos similares",null,null,null,null,"Fabricación de metales comunes; fabricación de productos elaborados de metal, excepto maquinaria y equipo\n"]
[null,1075,"Elaboración de comidas y platos preparados",null,null,null,null,"Industria de productos de informática y equipos eléctricos\n"]
[null,1079,"Elaboración de otros productos alimenticios n.c.p.",null,null,null,null,"Fabricación de maquinaria y equipos n.c.p., vehículos automotores, remolques y semirremolques, otros equipos de transporte\n"]
[null,1080,"Elaboración de piensos preparados para animales",null,null,null,null,"Fabricación de muebles, reparación e instalación de maquinaria y/o equipos y otras industriasmanufactureras"]
[null,1101,"Destilación, rectificación y mezcla de bebidas alcohólicas"]
[null,1102,"Elaboración de vinos"]
[null,1103,"Elaboración de bebidas malteadas y de malta"]
[null,1104,"Elaboración de bebidas no alcohólicas; producción de aguas minerales y otras aguas embotelladas"]
[null,1311,"Preparación e hilatura de fibras textiles"]
[null,1312,"Tejeduría de productos textiles"]
[null,1313,"Acabado de productos textiles"]
[null,1391,"Fabricación de tejidos de punto y ganchillo"]
[null,1392,"Fabricación de artículos confeccionados de materiales textiles, excepto prendas de vestir"]
[null,1393,"Fabricación de tapices y alfombras"]
[null,1394,"Fabricación de cuerdas, cordeles, bramantes y redes"]
[null,1399,"Fabricación de otros productos textiles n.c.p."]
[null,1410,"Fabricación de prendas de vestir, excepto prendas de piel"]
[null,1420,"Fabricación de artículos de piel"]
[null,1430,"Fabricación de artículos de punto y ganchillo"]
[null,1511,"Curtido y adobo de cueros; adobo y teñido de pieles"]
[null,1512,"Fabricación de maletas, bolsos de mano y artículos similares, y de artículos de talabartería y guarnicionería"]
[null,1520,"Fabricación de calzado"]
[null,1610,"Aserrado y acepilladura de madera"]
[null,1621,"Fabricación de hojas de madera para enchapado y tableros a base de madera"]
[null,1622,"Fabricación de partes y piezas de carpintería para edificios y construcciones"]
[null,1623,"Fabricación de recipientes de madera"]
[null,1629,"Fabricación de otros productos de madera; fabricación de artículos de corcho, paja y materiales trenzables"]
[null,1701,"Fabricación de pasta de madera, papel y cartón"]
[null,1702,"Fabricación de papel y cartón ondulado y de envases de papel y cartón"]
[null,1709,"Fabricación de otros artículos de papel y cartón"]
[null,1811,"Impresión"]
[null,1812,"Actividades de servicios relacionados con la impresión"]
[null,1820,"Reproducción de grabaciones"]
[null,2011,"Fabricación de sustancias químicas básicas"]
[null,2012,"Fabricación de abonos y compuestos de nitrógeno"]
[null,2013,"Fabricación de plásticos y caucho sintético en formas primarias"]
[null,2021,"Fabricación de plaguicidas y otros productos químicos de uso agropecuario"]
[null,2022,"Fabricación de pinturas, barnices y productos de revestimiento similares, tintas de imprenta y masillas"]
[null,2023,"Fabricación de jabones y detergentes, preparados para limpiar y pulir, perfumes y preparados de tocador"]
[null,2029,"Fabricación de otros productos químicos n.c.p."]
[null,2030,"Fabricación de fibras artificiales"]
[null,2100,"Fabricación de productos farmacéuticos, sustancias químicas medicinales y productos botánicos de uso farmacéutico"]
[null,2211,"Fabricación de cubiertas y cámaras de caucho; recauchutado y renovación de cubiertas de caucho"]
[null,2219,"Fabricación de otros productos de caucho"]
[null,2220,"Fabricación de productos de plástico"]
[null,2310,"Fabricación de vidrio y productos de vidrio"]
[null,2391,"Fabricación de productos refractarios"]
[null,2392,"Fabricación de materiales de construcción de arcilla"]
[null,2393,"Fabricación de otros productos de porcelana y de cerámica"]
[null,2394,"Fabricación de cemento, cal y yeso"]
[null,2395,"Fabricación de artículos de hormigón y yeso"]
[null,2396,"Corte, talla y acabado de la piedra"]
[null,2399,"Fabricación de otros productos minerales no metálicos n.c.p."]
[null,2410,"Industrias básicas de hierro y acero"]
[null,2420,"Fabricación de productos primarios de metales preciosos y otros metales no ferrosos"]
[null,2431,"Fundición de hierro y acero"]
[null,2432,"Fundición de metales no ferrosos"]
[null,2511,"Fabricación de productos metálicos para uso estructural"]
[null,2512,"Fabricación de tanques, depósitos y recipientes de metal"]
[null,2513,"Fabricación de generadores de vapor, excepto calderas de agua caliente para calefacción central"]
[null,2520,"Fabricación de armas y municiones"]
[null,2591,"Forja, prensado, estampado y laminado de metales; pulvimetalurgia"]
[null,2592,"Tratamiento y revestimiento de metales; maquinado"]
[null,2593,"Fabricación de artículos de cuchillería, herramientas de mano y artículos de ferretería"]
[null,2599,"Fabricación de otros productos elaborados de metal n.c.p."]
[null,2610,"Fabricación de componentes y tableros electrónicos"]
[null,2620,"Fabricación de ordenadores y equipo periférico"]
[null,2630,"Fabricación de equipo de comunicaciones"]
[null,2640,"Fabricación de aparatos electrónicos de consumo"]
[null,2651,"Fabricación de equipo de medición, prueba, navegación y control"]
[null,2652,"Fabricación de relojes"]
[null,2660,"Fabricación de equipo de irradiación y equipo electrónico de uso médico y terapéutico"]
[null,2670,"Fabricación de instrumentos ópticos y equipo fotográfico"]
[null,2680,"Fabricación de soportes magnéticos y ópticos"]
[null,2710,"Fabricación de motores, generadores y transformadores eléctricos y aparatos de distribución y control de la energía eléctrica"]
[null,2720,"Fabricación de pilas, baterías y acumuladores"]
[null,2731,"Fabricación de cables de fibra óptica"]
[null,2732,"Fabricación de otros hilos y cables eléctricos"]
[null,2733,"Fabricación de dispositivos de cableado"]
[null,2740,"Fabricación de equipo eléctrico de iluminación"]
[null,2750,"Fabricación de aparatos de uso doméstico"]
[null,2790,"Fabricación de otros tipos de equipo eléctrico"]
[null,2811,"Fabricación de motores y turbinas, excepto motores para aeronaves, vehículos automotores y motocicletas"]
[null,2812,"Fabricación de equipo de propulsión de fluidos"]
[null,2813,"Fabricación de otras bombas, compresores, grifos y válvulas"]
[null,2814,"Fabricación de cojinetes, engranajes, trenes de engranajes y piezas de transmisión"]
[null,2815,"Fabricación de hornos, hogares y quemadores"]
[null,2816,"Fabricación de equipo de elevación y manipulación"]
[null,2817,"Fabricación de maquinaria y de equipo de oficina (excepto ordenadores y equipo periférico)"]
[null,2818,"Fabricación de herramientas de mano motorizadas"]
[null,2819,"Fabricación de otros tipos de maquinaria de uso general"]
[null,2821,"Fabricación de maquinaria agropecuaria y forestal"]
[null,2822,"Fabricación de maquinaria para la conformación de metales y de máquinas herramienta"]
[null,2823,"Fabricación de maquinaria metalúrgica"]
[null,2824,"Fabricación de maquinaria para la explotación de minas y canteras y para obras de construcción"]
[null,2825,"Fabricación de maquinaria para la elaboración de alimentos, bebidas y tabaco"]
[null,2826,"Fabricación de maquinaria para la elaboración de productos textiles, prendas de vestir y cueros"]
[null,2829,"Fabricación de otros tipos de maquinaria de uso especial"]
[null,2910,"Fabricación de vehículos automotores"]
[null,2920,"Fabricación de carrocerías para vehículos automotores; fabricación de remolques y semirremolques"]
[null,2930,"Fabricación de partes, piezas y accesorios para vehículos automotores"]
[null,3011,"Construcción de buques y estructuras flotantes"]
[null,3012,"Construcción de embarcaciones de recreo y deporte"]
[null,3020,"Fabricación de locomotoras y material rodante"]
[null,3030,"Fabricación de aeronaves, naves espaciales y maquinaría conexa"]
[null,3040,"Fabricación de vehículos militares de combate"]
[null,3091,"Fabricación de motocicletas"]
[null,3092,"Fabricación de bicicletas y de sillones de ruedas ara inválidos"]
[null,3099,"Fabricación de otros tipos de equipo de transporte n.c.p."]
[null,3100,"Fabricación de muebles"]
[null,3211,"Fabricación de joyas y artículos conexos"]
[null,3212,"Fabricación de bisutería y artículos conexos"]
[null,3220,"Fabricación de instrumentos de música"]
[null,3230,"Fabricación de artículos de deporte"]
[null,3240,"Fabricación de juegos y juguetes"]
[null,3250,"Fabricación de instrumentos y materiales médicos y odontológicos"]
[null,3290,"Otras industrias manufactureras n.c.p."]